Workbook

Sheet بيانات
Q1: التوقيـــــــــــــــــــت الأسبـــــــــــــــــوعي
B3: الاساتذة | D3: المواد | F3: الأقسام | H3: الأيام | J3: مشرفي التربية | L3: الرتب | N3: التبريرات | S3: الأحــــد | AE3: الإثنيــن | AQ3: الثلاثاء | BC3: الأربعـاء | BO3: الخميــس
B4: أ.الرياضيات | D4: فرنسية | F4: 3ت ر | H4: الأحــــد | L4: مستشار ت | N4: إضراب | S4: 08ـ09 | T4: 09ـ10 | U4: 10ـ11 | V4: 11ـ12 | W4: 14½-13½ | X4: 15½-14½ | Y4: 16½-15½ | Z4: 17½-16½ | AE4: 08ـ09 | AF4: 09ـ10 | AG4: 10ـ11 | AH4: 11ـ12 | AI4: 14½-13½ | AJ4: 15½-14½ | AK4: 16½-15½ | AL4: 17½-16½ | AQ4: 08ـ09 | AR4: 09ـ10 | AS4: 10ـ11 | AT4: 11ـ12 | AU4: 14½-13½ | AV4: 15½-14½ | AW4: 16½-15½ | AX4: 17½-16½ | BC4: 08ـ09 | BD4: 09ـ10 | BE4: 10ـ11 | BF4: 11ـ12 | BG4: 14½-13½ | BH4: 15½-14½ | BI4: 16½-15½ | BJ4: 17½-16½ | BO4: 08ـ09 | BP4: 09ـ10 | BQ4: 10ـ11 | BR4: 11ـ12 | BS4: 14½-13½ | BT4: 15½-14½ | BU4: 16½-15½ | BV4: 17½-16½
B5: أ.ناسي | D5: أدب عربي | F5: 3ع ت1 | H5: الإثنيــن | J5: اوحساين مجاهد | L5: مشرف ت | N5: عطلة مرضية | P5: 1 | Q5: أ.ناسي | R5: أ.الرياضيات | S5: 2ت ر | T5: 3ت ر | U5: 3ت ر | Z5: 1ع1 | AB5: 1 | AC5: أ.ناسي | AD5: أ.الرياضيات | AE5: 2ت ر | AF5: 3ت ر | AG5: 3ت ر | AL5: 1ع1 | AN5: 1 | AO5: أ.ناسي | AP5: أ.الرياضيات | AS5: 3ت ر | AX5: 1ع1 | AZ5: 1 | BA5: أ.ناسي | BB5: أ.الرياضيات | BC5: 2ت ر | BD5: 3ت ر | BE5: 3ت ر | BJ5: 1ع1 | BL5: 1 | BM5: أ.ناسي | BN5: أ.الرياضيات | BS5: 2ت ر | BT5: 3ت ر | BU5: 3ت ر | BV5: 1ع1
B6: أ.بوطوبة | D6: ع اسلامية | F6: 3ع ت2 | H6: الثلاثاء | J6: بوزيدي محمد | N6: عطلة أمومة | P6: 2 | Q6: أ.بوطوبة | R6: أ.الرياضيات | AB6: 2 | AC6: أ.بوطوبة | AD6: أ.الرياضيات | AN6: 2 | AO6: أ.بوطوبة | AP6: أ.الرياضيات | AZ6: 2 | BA6: أ.بوطوبة | BB6: أ.الرياضيات | BL6: 2 | BM6: أ.بوطوبة | BN6: أ.الرياضيات | BQ6: 2أ ف | BR6: 1ع4
B7: أ.بوعريشة | D7: ع طبيعية | F7: 3ت إ | H7: الأربعـاء | J7: عبد المالك منور | N7: شهادة طبية | P7: 3 | Q7: أ.بوعريشة | R7: أ.الرياضيات | AB7: 3 | AC7: أ.بوعريشة | AD7: أ.الرياضيات | AN7: 3 | AO7: أ.بوعريشة | AP7: أ.الرياضيات | AZ7: 3 | BA7: أ.بوعريشة | BB7: أ.الرياضيات | BL7: 3 | BM7: أ.بوعريشة | BN7: أ.الرياضيات
B8: أ.قبلي | D8: اجتماعيات | F8: 3أ ف | H8: الخميــس | J8: حجاز محمد | N8: ندوة خارجية | P8: 4 | Q8: أ.قبلي | R8: أ.الرياضيات | AB8: 4 | AC8: أ.قبلي | AD8: أ.الرياضيات | AN8: 4 | AO8: أ.قبلي | AP8: أ.الرياضيات | AZ8: 4 | BA8: أ.قبلي | BB8: أ.الرياضيات | BL8: 4 | BM8: أ.قبلي | BN8: أ.الرياضيات
B9: أ.ديب | D9: تكنولوجيا | F9: 3لغات | J9: يوسف حسناء | N9: ملتقى | P9: 5 | Q9: أ.ديب | R9: أ.الرياضيات | AB9: 5 | AC9: أ.ديب | AD9: أ.الرياضيات | AN9: 5 | AO9: أ.ديب | AP9: أ.الرياضيات | AZ9: 5 | BA9: أ.ديب | BB9: أ.الرياضيات | BL9: 5 | BM9: أ.ديب | BN9: أ.الرياضيات
D10: اقتصاد | J10: سيفي عبد القادر | N10: امتحان تثبيت | P10: 6 | Q10: أ.عشماوي | R10: أ.الفيزياء | AB10: 6 | AC10: أ.عشماوي | AD10: أ.الفيزياء | AN10: 6 | AO10: أ.عشماوي | AP10: أ.الفيزياء | AZ10: 6 | BA10: أ.عشماوي | BB10: أ.الفيزياء | BL10: 6 | BM10: أ.عشماوي | BN10: أ.الفيزياء
D11: انجليزية | J11: كاملي نبيلة | N11: اجتماع مرخص | P11: 7 | Q11: أ.حاجب | R11: أ.الفيزياء | AB11: 7 | AC11: أ.حاجب | AD11: أ.الفيزياء | AN11: 7 | AO11: أ.حاجب | AP11: أ.الفيزياء | AZ11: 7 | BA11: أ.حاجب | BB11: أ.الفيزياء | BL11: 7 | BM11: أ.حاجب | BN11: أ.الفيزياء
B12: أ.الفيزياء | D12: رياضة | F12: 2ت ر | N12: وفاة الأقارب | P12: 8 | Q12: قوراري | R12: أ.الفيزياء | AB12: 8 | AC12: قوراري | AD12: أ.الفيزياء | AN12: 8 | AO12: قوراري | AP12: أ.الفيزياء | AZ12: 8 | BA12: قوراري | BB12: أ.الفيزياء | BL12: 8 | BM12: قوراري | BN12: أ.الفيزياء
B13: أ.عشماوي | D13: فلسفة | F13: 2ع ت1 | N13: احتجاج | P13: 9 | Q13: أ.ناضور | R13: أ.الفيزياء | AB13: 9 | AC13: أ.ناضور | AD13: أ.الفيزياء | AN13: 9 | AO13: أ.ناضور | AP13: أ.الفيزياء | AZ13: 9 | BA13: أ.ناضور | BB13: أ.الفيزياء | BL13: 9 | BM13: أ.ناضور | BN13: أ.الفيزياء
B14: أ.حاجب | D14: فيزياء | F14: 2ع ت2 | N14: مع التعويض | P14: 10 | Q14: أ.زرار | R14: أ.الفيزياء | AB14: 10 | AC14: أ.زرار | AD14: أ.الفيزياء | AN14: 10 | AO14: أ.زرار | AP14: أ.الفيزياء | AZ14: 10 | BA14: أ.زرار | BB14: أ.الفيزياء | BL14: 10 | BM14: أ.زرار | BN14: أ.الفيزياء
B15: قوراري | D15: رياضيات | F15: 2ت إ | N15: مرض مفاجئ | P15: 11 | Q15: أ.براهمي | R15: أ.ع الطبيعية | AB15: 11 | AC15: أ.براهمي | AD15: أ.ع الطبيعية | AN15: 11 | AO15: أ.براهمي | AP15: أ.ع الطبيعية | AZ15: 11 | BA15: أ.براهمي | BB15: أ.ع الطبيعية | BL15: 11 | BM15: أ.براهمي | BN15: أ.ع الطبيعية
B16: أ.ناضور | D16: إسبانية | F16: 2أ ف | N16: مرض | P16: 12 | Q16: أ.لعشب | R16: أ.ع الطبيعية | AB16: 12 | AC16: أ.لعشب | AD16: أ.ع الطبيعية | AN16: 12 | AO16: أ.لعشب | AP16: أ.ع الطبيعية | AZ16: 12 | BA16: أ.لعشب | BB16: أ.ع الطبيعية | BL16: 12 | BM16: أ.لعشب | BN16: أ.ع الطبيعية
B17: أ.زرار | D17: معلوماتية | F17: 2لغات | P17: 13 | Q17: أ.درني | R17: أ.ع الطبيعية | AB17: 13 | AC17: أ.درني | AD17: أ.ع الطبيعية | AN17: 13 | AO17: أ.درني | AP17: أ.ع الطبيعية | AZ17: 13 | BA17: أ.درني | BB17: أ.ع الطبيعية | BL17: 13 | BM17: أ.درني | BN17: أ.ع الطبيعية
F18: 1ع1 | P18: 14 | Q18: أ.فراج | R18: أ.ع الطبيعية | AB18: 14 | AC18: أ.فراج | AD18: أ.ع الطبيعية | AN18: 14 | AO18: أ.فراج | AP18: أ.ع الطبيعية | AZ18: 14 | BA18: أ.فراج | BB18: أ.ع الطبيعية | BL18: 14 | BM18: أ.فراج | BN18: أ.ع الطبيعية
B19: أ.ع الطبيعية | F19: 1ع2 | P19: 15 | Q19: أ.كريب | R19: أ,الأدب العربي | AB19: 15 | AC19: أ.كريب | AD19: أ,الأدب العربي | AN19: 15 | AO19: أ.كريب | AP19: أ,الأدب العربي | AZ19: 15 | BA19: أ.كريب | BB19: أ,الأدب العربي | BL19: 15 | BM19: أ.كريب | BN19: أ,الأدب العربي
B20: أ.براهمي | F20: 1ع3 | P20: 16 | Q20: أ.صبيان | R20: أ,الأدب العربي | AB20: 16 | AC20: أ.صبيان | AD20: أ,الأدب العربي | AN20: 16 | AO20: أ.صبيان | AP20: أ,الأدب العربي | AZ20: 16 | BA20: أ.صبيان | BB20: أ,الأدب العربي | BL20: 16 | BM20: أ.صبيان | BN20: أ,الأدب العربي
B21: أ.لعشب | F21: 1ع4 | P21: 17 | Q21: أ.قادري | R21: أ,الأدب العربي | AB21: 17 | AC21: أ.قادري | AD21: أ,الأدب العربي | AN21: 17 | AO21: أ.قادري | AP21: أ,الأدب العربي | AZ21: 17 | BA21: أ.قادري | BB21: أ,الأدب العربي | BL21: 17 | BM21: أ.قادري | BN21: أ,الأدب العربي
B22: أ.درني | F22: 1ع5 | P22: 18 | Q22: أ.أعطا الله | R22: أ,الأدب العربي | AB22: 18 | AC22: أ.أعطا الله | AD22: أ,الأدب العربي | AN22: 18 | AO22: أ.أعطا الله | AP22: أ,الأدب العربي | AZ22: 18 | BA22: أ.أعطا الله | BB22: أ,الأدب العربي | BL22: 18 | BM22: أ.أعطا الله | BN22: أ,الأدب العربي
B23: أ.فراج | F23: 1أ1 | P23: 19 | Q23: أ.قعاد | R23: أ,الأدب العربي | AB23: 19 | AC23: أ.قعاد | AD23: أ,الأدب العربي | AN23: 19 | AO23: أ.قعاد | AP23: أ,الأدب العربي | AZ23: 19 | BA23: أ.قعاد | BB23: أ,الأدب العربي | BL23: 19 | BM23: أ.قعاد | BN23: أ,الأدب العربي
F24: 1أ2 | P24: 20 | Q24: أ.قان | R24: أ.الاجتماعيات | AB24: 20 | AC24: أ.قان | AD24: أ.الاجتماعيات | AN24: 20 | AO24: أ.قان | AP24: أ.الاجتماعيات | AZ24: 20 | BA24: أ.قان | BB24: أ.الاجتماعيات | BL24: 20 | BM24: أ.قان | BN24: أ.الاجتماعيات
P25: 21 | Q25: أ.سواريت | R25: أ.الاجتماعيات | AB25: 21 | AC25: أ.سواريت | AD25: أ.الاجتماعيات | AN25: 21 | AO25: أ.سواريت | AP25: أ.الاجتماعيات | AZ25: 21 | BA25: أ.سواريت | BB25: أ.الاجتماعيات | BL25: 21 | BM25: أ.سواريت | BN25: أ.الاجتماعيات
B26: أ,الأدب العربي | P26: 22 | Q26: أ.صفراوي | R26: أ.الاجتماعيات | AB26: 22 | AC26: أ.صفراوي | AD26: أ.الاجتماعيات | AN26: 22 | AO26: أ.صفراوي | AP26: أ.الاجتماعيات | AZ26: 22 | BA26: أ.صفراوي | BB26: أ.الاجتماعيات | BL26: 22 | BM26: أ.صفراوي | BN26: أ.الاجتماعيات
B27: أ.كريب | P27: 23 | Q27: أ.أجد | R27: أ.الاجتماعيات | AB27: 23 | AC27: أ.أجد | AD27: أ.الاجتماعيات | AN27: 23 | AO27: أ.أجد | AP27: أ.الاجتماعيات | AZ27: 23 | BA27: أ.أجد | BB27: أ.الاجتماعيات | BL27: 23 | BM27: أ.أجد | BN27: أ.الاجتماعيات
B28: أ.سعيداني | P28: 24 | Q28: أ.بوحاجب/و | R28: أ.ع الإسلامية | AB28: 24 | AC28: أ.بوحاجب/و | AD28: أ.ع الإسلامية | AN28: 24 | AO28: أ.بوحاجب/و | AP28: أ.ع الإسلامية | AZ28: 24 | BA28: أ.بوحاجب/و | BB28: أ.ع الإسلامية | BL28: 24 | BM28: أ.بوحاجب/و | BN28: أ.ع الإسلامية
B29: أ.قادري | P29: 25 | Q29: أ.بوزياني | R29: أ.ع الإسلامية | AB29: 25 | AC29: أ.بوزياني | AD29: أ.ع الإسلامية | AN29: 25 | AO29: أ.بوزياني | AP29: أ.ع الإسلامية | AZ29: 25 | BA29: أ.بوزياني | BB29: أ.ع الإسلامية | BL29: 25 | BM29: أ.بوزياني | BN29: أ.ع الإسلامية
B30: أ.أعطا الله | P30: 26 | Q30: أ.عزيز | R30: أ.الفلسفة | AB30: 26 | AC30: أ.عزيز | AD30: أ.الفلسفة | AN30: 26 | AO30: أ.عزيز | AP30: أ.الفلسفة | AZ30: 26 | BA30: أ.عزيز | BB30: أ.الفلسفة | BL30: 26 | BM30: أ.عزيز | BN30: أ.الفلسفة
B31: أ.قعاد | P31: 27 | Q31: أ.زقاي | R31: أ.الفلسفة | AB31: 27 | AC31: أ.زقاي | AD31: أ.الفلسفة | AN31: 27 | AO31: أ.زقاي | AP31: أ.الفلسفة | AZ31: 27 | BA31: أ.زقاي | BB31: أ.الفلسفة | BL31: 27 | BM31: أ.زقاي | BN31: أ.الفلسفة
B32: أ.صبيان | P32: 28 | Q32: أ.رابحي | R32: أ.الفرنسية | AB32: 28 | AC32: أ.رابحي | AD32: أ.الفرنسية | AN32: 28 | AO32: أ.رابحي | AP32: أ.الفرنسية | AZ32: 28 | BA32: أ.رابحي | BB32: أ.الفرنسية | BL32: 28 | BM32: أ.رابحي | BN32: أ.الفرنسية
P33: 29 | Q33: أ.كوليلي | R33: أ.الفرنسية | AB33: 29 | AC33: أ.كوليلي | AD33: أ.الفرنسية | AN33: 29 | AO33: أ.كوليلي | AP33: أ.الفرنسية | AZ33: 29 | BA33: أ.كوليلي | BB33: أ.الفرنسية | BL33: 29 | BM33: أ.كوليلي | BN33: أ.الفرنسية
B34: أ.الاجتماعيات | P34: 30 | Q34: أ.بومانة | R34: أ.الفرنسية | AB34: 30 | AC34: أ.بومانة | AD34: أ.الفرنسية | AN34: 30 | AO34: أ.بومانة | AP34: أ.الفرنسية | AZ34: 30 | BA34: أ.بومانة | BB34: أ.الفرنسية | BL34: 30 | BM34: أ.بومانة | BN34: أ.الفرنسية
B35: أ.قان | P35: 31 | Q35: أ.عباد | R35: أ.الفرنسية | AB35: 31 | AC35: أ.عباد | AD35: أ.الفرنسية | AN35: 31 | AO35: أ.عباد | AP35: أ.الفرنسية | AZ35: 31 | BA35: أ.عباد | BB35: أ.الفرنسية | BL35: 31 | BM35: أ.عباد | BN35: أ.الفرنسية
B36: أ.سواريت | P36: 32 | Q36: أ.العرباوي | R36: أ.الانجليزية | AB36: 32 | AC36: أ.العرباوي | AD36: أ.الانجليزية | AN36: 32 | AO36: أ.العرباوي | AP36: أ.الانجليزية | AZ36: 32 | BA36: أ.العرباوي | BB36: أ.الانجليزية | BL36: 32 | BM36: أ.العرباوي | BN36: أ.الانجليزية
B37: أ.صفراوي | P37: 33 | Q37: أ.معزوز | R37: أ.الانجليزية | AB37: 33 | AC37: أ.معزوز | AD37: أ.الانجليزية | AN37: 33 | AO37: أ.معزوز | AP37: أ.الانجليزية | AZ37: 33 | BA37: أ.معزوز | BB37: أ.الانجليزية | BL37: 33 | BM37: أ.معزوز | BN37: أ.الانجليزية
B38: أ.أجد | P38: 34 | Q38: أ.مزاري | R38: أ.الانجليزية | AB38: 34 | AC38: أ.مزاري | AD38: أ.الانجليزية | AN38: 34 | AO38: أ.مزاري | AP38: أ.الانجليزية | AZ38: 34 | BA38: أ.مزاري | BB38: أ.الانجليزية | BL38: 34 | BM38: أ.مزاري | BN38: أ.الانجليزية
P39: 35 | Q39: أ.شنتوف | R39: أ.الانجليزية | AB39: 35 | AC39: أ.شنتوف | AD39: أ.الانجليزية | AN39: 35 | AO39: أ.شنتوف | AP39: أ.الانجليزية | AZ39: 35 | BA39: أ.شنتوف | BB39: أ.الانجليزية | BL39: 35 | BM39: أ.شنتوف | BN39: أ.الانجليزية
P40: 36 | Q40: أ.سيفاني | R40: أ.الاسبانية | AB40: 36 | AC40: أ.سيفاني | AD40: أ.الاسبانية | AN40: 36 | AO40: أ.سيفاني | AP40: أ.الاسبانية | AZ40: 36 | BA40: أ.سيفاني | BB40: أ.الاسبانية | BL40: 36 | BM40: أ.سيفاني | BN40: أ.الاسبانية
B41: أ.ع الإسلامية | P41: 37 | Q41: أ.زغودي | R41: أ.التكنولوجيا | AB41: 37 | AC41: أ.زغودي | AD41: أ.التكنولوجيا | AN41: 37 | AO41: أ.زغودي | AP41: أ.التكنولوجيا | AZ41: 37 | BA41: أ.زغودي | BB41: أ.التكنولوجيا | BL41: 37 | BM41: أ.زغودي | BN41: أ.التكنولوجيا
B42: أ.بوحاجب/و | P42: 38 | Q42: أ.موس | R42: أ.التكنولوجيا | AB42: 38 | AC42: أ.موس | AD42: أ.التكنولوجيا | AN42: 38 | AO42: أ.موس | AP42: أ.التكنولوجيا | AZ42: 38 | BA42: أ.موس | BB42: أ.التكنولوجيا | BL42: 38 | BM42: أ.موس | BN42: أ.التكنولوجيا
B43: أ.بوزياني | P43: 39 | Q43: أ.بوهنة | R43: أ.التكنولوجيا | AB43: 39 | AC43: أ.بوهنة | AD43: أ.التكنولوجيا | AN43: 39 | AO43: أ.بوهنة | AP43: أ.التكنولوجيا | AZ43: 39 | BA43: أ.بوهنة | BB43: أ.التكنولوجيا | BL43: 39 | BM43: أ.بوهنة | BN43: أ.التكنولوجيا
P44: 40 | Q44: أ.نوار | R44: أ.المعلوماتية | AB44: 40 | AC44: أ.نوار | AD44: أ.المعلوماتية | AN44: 40 | AO44: أ.نوار | AP44: أ.المعلوماتية | AZ44: 40 | BA44: أ.نوار | BB44: أ.المعلوماتية | BL44: 40 | BM44: أ.نوار | BN44: أ.المعلوماتية
B45: أ.الفلسفة | P45: 41 | Q45: أ.بوشيخي | R45: أ.الاقتصاد | AB45: 41 | AC45: أ.بوشيخي | AD45: أ.الاقتصاد | AN45: 41 | AO45: أ.بوشيخي | AP45: أ.الاقتصاد | AZ45: 41 | BA45: أ.بوشيخي | BB45: أ.الاقتصاد | BL45: 41 | BM45: أ.بوشيخي | BN45: أ.الاقتصاد
B46: أ.عزيز | P46: 42 | Q46: أ.فارس | R46: أ.الاقتصاد | AB46: 42 | AC46: أ.فارس | AD46: أ.الاقتصاد | AN46: 42 | AO46: أ.فارس | AP46: أ.الاقتصاد | AZ46: 42 | BA46: أ.فارس | BB46: أ.الاقتصاد | BL46: 42 | BM46: أ.فارس | BN46: أ.الاقتصاد
B47: أ.زقاي | P47: 43 | Q47: أ.لقبوري | R47: أ.الرياضة | AB47: 43 | AC47: أ.لقبوري | AD47: أ.الرياضة | AN47: 43 | AO47: أ.لقبوري | AP47: أ.الرياضة | AZ47: 43 | BA47: أ.لقبوري | BB47: أ.الرياضة | BL47: 43 | BM47: أ.لقبوري | BN47: أ.الرياضة
P48: 44 | Q48: أ.تربش | R48: أ.الرياضة | AB48: 44 | AC48: أ.تربش | AD48: أ.الرياضة | AN48: 44 | AO48: أ.تربش | AP48: أ.الرياضة | AZ48: 44 | BA48: أ.تربش | BB48: أ.الرياضة | BL48: 44 | BM48: أ.تربش | BN48: أ.الرياضة
P49: 45 | Q49: أ.كحلون | R49: أ.الرياضة | AB49: 45 | AC49: أ.كحلون | AD49: أ.الرياضة | AN49: 45 | AO49: أ.كحلون | AP49: أ.الرياضة | AZ49: 45 | BA49: أ.كحلون | BB49: أ.الرياضة | BL49: 45 | BM49: أ.كحلون | BN49: أ.الرياضة
B50: أ.الفرنسية
B51: أ.رابحي
B52: أ.كوليلي
B53: أ.بوعبان
B54: أ.عباد
B55: أ.بومانة
B57: أ.الانجليزية
B58: أ.العرباوي
B59: أ.معزوز
B60: أ.مزاري
B61: أ.شنتوف
B64: أ.الاسبانية
B65: أ.سيفاني | D65: التوقيــــــــــــت
B66: أ.التكنولوجيا
B67: أ.زغودي
B68: أ.موس
B69: أ.بوهنة | D69: 08ـ09
D70: 09ـ10
D71: 10ـ11
B72: أ.المعلوماتية | D72: 11ـ12
B73: أ.نوار | D73: 14½-13½
D74: 15½-14½
B75: أ.الاقتصاد | D75: 16½-15½
B76: أ.بوشيخي | D76: 17½-16½
B77: أ.فارس
B79: أ.الرياضة
B80: أ.لقبوري
B81: أ.تربش
B82: أ.كحلون
B85: منصب شاغر
D91: بن يحي محمد | E91: رياضيات
D92: شويرف نسمة
D93: طالبي حفيظة
D94: بناصرمحمد
D95: بن عبد الله هدى
D96: بن علي فاطمة
D110: 1 | E110: 2 | F110: 3 | G110: 3 | H110: 5 | I110: 6 | J110: 7 | K110: 8 | L110: 9 | M110: 10 | N110: 11 | O110: 12 | P110: 13 | Q110: 14 | R110: 15 | S110: 16 | T110: 17 | U110: 18 | V110: 19 | W110: 20 | X110: 21 | Y110: 22 | Z110: 23 | AA110: 24 | AB110: 25 | AC110: 26 | AD110: 27 | AE110: 28 | AF110: 29 | AG110: 30 | AH110: 31 | AI110: 32 | AJ110: 33 | AK110: 34 | AL110: 35 | AM110: 36 | AN110: 37 | AO110: 38 | AP110: 39 | AQ110: 40 | AR110: 41 | AS110: 42 | AT110: 43 | AU110: 44 | AV110: 45 | AW110: 46 | AX110: 47 | AY110: 48 | AZ110: 49 | BA110: 50 | BB110: 51 | BC110: 52 | BD110: 53 | BE110: 54
D111: بن يحي محمد | E111: لعراجي احمد | K111: بن خلفون محمد | L111: فيلالي سهام | M111: قطبي مرا د | N111: حوالف شرف الدين | O111: جديد رشيد | P111: جنان نعيمة | Q111: حماد معمر | R111: بطهري نريمان ايمان | S111: حسيني محمد | T111: سي بشير محمد | U111: وافي حليمة | V111: قرمودي عبد الرحيم | W111: برمضان ليلى | X111: قوال فاطمة الزهرة | Y111: مهاجي سعاد | Z111: بادة وفاء | AA111: عاشورة نريمان | AB111: برابح امينة | AC111: بلعربي يوسف | AD111: عباس عبد الله | AE111: عتبي احمد | AF111: زغودي محمد | AG111: فريد حار امينة | AH111: سحنون نرجس | AI111: مسعود وفاء | AJ111: مزوار محمد | AK111: درنوح محمد | AL111: اوزليفي ليلى | AM111: يوسف اكرام | AN111: بلعباسي سمرة | AO111: أحمد أمينة | AP111: اوسدي حسين | AQ111: قناد عبد الخالق | AR111: كنزي خيرالدين
E112: رياضيات | F112: رياضيات | G112: رياضيات | H112: رياضيات | I112: هـ كهربائية | J112: هـ كهربائية | K112: هـ ميكانيكية | L112: فيزياء | M112: فيزياء | N112: فيزياء | O112: فيزياء | P112: ع طبيعية | Q112: ع طبيعية | R112: ع طبيعية | S112: ع طبيعية | T112: عربية | U112: عربية | V112: عربية | W112: عربية | X112: عربية | Y112: ع اجتماعية | Z112: ع اجتماعية | AA112: ع اجتماعية | AB112: فلسفة | AC112: فلسفة | AD112: ع اسلامية | AE112: ع اسلامية | AF112: ت اقتصاد | AG112: ت اقتصاد | AH112: فرنسية | AI112: فرنسية | AJ112: فرنسية | AK112: فرنسية | AL112: انجليزية | AM112: انجليزية | AN112: انجليزية | AO112: انجليزية | AP112: اسبانية | AQ112: ت بدنية | AR112: ت بدنية
B114: الأحــد | C114: 09-08 | F114: 3ت ر | N114: 2ع ت | O114: ج م ع1 | P114: ج م ع1 | S114: 2ع ت | U114: 3آف | V114: ج م ع4 | W114: ج م ع1 | Y114: ج م ع2 | AA114: 3ع ت 1 | AB114: 2آف 2 | AE114: ج م آ2 | AG114: 3ت إ | AI114: 2ل أ | AK114: 2ت ر | AL114: 3ع ت2 | AM114: 3ل أ | AO114: ج م ع3
C115: 10-09 | F115: 3ت ر | N115: 2ع ت | O115: ج م ع1 | P115: ج م ع1 | S115: 2ع ت | U115: 3آف | V115: ج م ع3 | W115: ج م ع1 | Y115: ج م آ2 | AA115: 2ت إ | AB115: 2آف 2 | AE115: 3ع ت2 | AG115: 3ت إ | AH115: ج م ع2 | AI115: 3ع ت 1 | AK115: 2آف 1 | AL115: 2ت ر | AM115: 3ل أ | AO115: ج م ع4 | AP115: 2ل أ
C116: 11-10 | F116: 2ت ر | H116: ج م ع4 | N116: 2ع ت | O116: ج م ع1 | P116: ج م ع1 | S116: 2ع ت | U116: 3ع ت 1 | W116: ج م ع2 | Y116: ج م آ1 | AA116: 2آف 1 | AB116: 3ع ت2 | AE116: ج م ع2 | AH116: 3آف | AI116: 3ت إ | AL116: 3ت ر | AN116: 2آف 2 | AO116: 2ت إ | AP116: 3ل أ | AQ116: ج م ع3 | AR116: 2ل أ
C117: 12-11 | F117: 2ت ر | H117: ج م ع4 | N117: 2ع ت | O117: ج م ع1 | P117: ج م ع1 | S117: 2ع ت | U117: 2آف 1 | W117: ج م ع2 | Y117: 3ت إ | AA117: 3ع ت2 | AB117: 3ع ت2 | AH117: 3ت ر | AI117: 2ت إ | AK117: ج م آ1 | AM117: 3آف | AN117: ج م ع2 | AP117: 3ل أ | AQ117: ج م ع3 | AR117: 2ل أ
C118: 14-13 | D118: 2آف 2 | E118: ج م ع1 | G118: 2ع ت | H118: ج م آ1 | I118: ج م ع3 | J118: ج م ع3 | K118: ج م ع3 | L118: 2آف 1 | M118: 3ت ر | P118: ج م ع3 | Q118: 3ع ت2 | R118: 2آف 1 | T118: ج م ع2 | Z118: 2ل أ | AC118: 3آف | AD118: 3ت إ | AE118: 3ع ت 1 | AF118: 2ت إ | AH118: 3ل أ | AJ118: ج م ع4 | AL118: 2ت ر | AO118: ج م آ2
C119: 15-14 | D119: 2ل أ | E119: 3ل أ | G119: 3ع ت 1 | H119: ج م ع2 | I119: ج م ع3 | J119: ج م ع3 | K119: ج م ع3 | L119: 2آف 1 | M119: 3ت ر | P119: ج م ع3 | Q119: 3ع ت2 | R119: 2آف 1 | T119: 3ت إ | V119: 2آف 2 | Z119: 2ت ر | AC119: 3آف | AD119: 3ع ت 1 | AE119: ج م ع4 | AF119: 2ت إ | AH119: ج م ع1 | AJ119: ج م آ2 | AO119: ج م آ1
C120: 16-15 | D120: 2آف 1 | E120: 3آف | G120: 3ع ت2 | J120: ج م ع2 | K120: ج م ع2 | M120: ج م آ2 | P120: ج م ع2 | Q120: ج م آ2 | R120: ج م ع4 | T120: ج م ع1 | V120: 2ع ت | X120: 2ل أ | Z120: 2آف 2 | AC120: 3ل أ | AD120: 2ت ر | AF120: ج م ع2 | AJ120: ج م ع3 | AL120: 2ع ت | AP120: ج م ع2 | AQ120: ج م آ1 | AR120: 3ت ر
C121: 17-16 | J121: ج م ع2 | K121: ج م ع2 | M121: ج م آ2 | P121: ج م ع2 | Q121: ج م آ2 | T121: 3ل أ | X121: 3ع ت2 | Z121: 3آف | AF121: ج م ع2 | AJ121: 2ع ت | AP121: ج م ع2 | AQ121: ج م آ1 | AR121: 3ت ر
B122: الإثنين | C122: 09-08 | D122: ج م ع3 | E122: ج م ع1 | F122: 3ت ر | H122: ج م ع4 | I122: 2ت ر | K122: 2ت ر | M122: ج م ع2 | O122: 3ع ت 1 | P122: 3ع ت 1 | Q122: ج م آ1 | R122: ج م ع2 | X122: 2ت إ | Z122: 2ع ت | AB122: 2آف 2 | AC122: 3آف | AD122: 2آف 1 | AE122: 3ع ت2 | AF122: 3ت إ | AI122: 2ل أ | AM122: 3ل أ
C123: 10-09 | D123: ج م ع3 | E123: ج م ع1 | F123: 2ت إ | H123: ج م آ1 | I123: 2ت ر | K123: 2ت ر | M123: ج م ع2 | O123: 3ع ت 1 | P123: 3ع ت 1 | Q123: ج م آ2 | R123: ج م ع2 | V123: 2ع ت | X123: 3ع ت2 | Z123: 2ل أ | AB123: 3ت ر | AC123: 3آف | AD123: 2آف 2 | AE123: 3ل أ | AI123: 3ت إ | AJ123: ج م ع4 | AM123: 2آف 1
C124: 11-10 | D124: 2آف 1 | E124: 3ت إ | F124: 2ت ر | I124: 3ت ر | K124: 3ت ر | L124: ج م ع3 | M124: ج م ع2 | O124: 3ع ت 1 | P124: 3ع ت 1 | R124: ج م ع2 | V124: 2آف 2 | X124: 2ل أ | Y124: ج م ع4 | AC124: 3ل أ | AE124: ج م آ1 | AF124: 2ت إ | AI124: 3ع ت2 | AJ124: ج م آ2 | AM124: 3آف | AQ124: ج م ع1 | AR124: 3ع ت 1
C125: 12-11 | D125: ج م آ2 | F125: 2ت ر | I125: 3ت ر | K125: 3ت ر | L125: ج م ع4 | M125: ج م ع2 | O125: 3ع ت 1 | P125: 3ع ت 1 | Q125: 3ع ت2 | R125: ج م ع2 | X125: 2ل أ | Y125: ج م آ1 | Z125: 2آف 2 | AB125: 3ت إ | AC125: 2آف 1 | AF125: 2ت إ | AJ125: ج م ع3 | AM125: 3آف | AQ125: ج م ع1 | AR125: 3ع ت 1
C126: 14-13 | G126: 3ع ت2 | I126: ج م ع4 | J126: ج م ع4 | K126: ج م ع4 | L126: 2آف 2 | N126: 2ت ر | Q126: ج م ع4 | S126: 2آف 2 | T126: ج م ع1 | U126: 2آف 1 | W126: 3ت ر | Y126: ج م آ2 | AA126: 3ل أ | AD126: 3آف | AE126: ج م ع3 | AG126: 3ت إ | AH126: ج م ع2 | AK126: ج م آ1 | AL126: 3ع ت 1 | AO126: 2ت إ | AP126: 2ل أ
C127: 15-14 | G127: 3ع ت 1 | I127: ج م ع4 | J127: ج م ع4 | K127: ج م ع4 | L127: 2آف 2 | N127: 2ت ر | Q127: ج م ع4 | S127: 2آف 2 | T127: ج م ع2 | U127: 3ع ت 1 | V127: ج م ع3 | W127: ج م آ2 | Y127: ج م ع1 | AA127: 2ت إ | AD127: 2ل أ | AE127: 3ت ر | AG127: 3ت إ | AH127: 3آف | AK127: 2آف 1 | AL127: 3ع ت2 | AM127: 2ع ت | AO127: ج م آ1 | AP127: 3ل أ
C128: 16-15 | G128: 3ع ت 1 | I128: ج م ع1 | K128: ج م ع1 | N128: 3ع ت2 | Q128: ج م ع1 | S128: 2ع ت | T128: 3ل أ | U128: 3آف | V128: ج م ع4 | W128: ج م آ1 | Y128: ج م ع3 | AA128: 2آف 1 | AG128: ج م ع1 | AH128: 3ت ر | AK128: 2آف 2 | AL128: 3ت إ | AP128: ج م ع2 | AQ128: ج م آ2 | AR128: 2ت ر
C129: 17-16 | I129: ج م ع1 | K129: ج م ع1 | Q129: ج م ع1 | S129: ج م ع3 | U129: 3آف | W129: ج م ع1 | AG129: ج م ع1 | AQ129: ج م آ2 | AR129: 2ت ر
B130: الثلاثاء | C130: 09-08 | H130: ج م ع2 | I130: 2ت ر | J130: ج م ع4 | K130: 2ت ر | L130: 2آف 1 | M130: 3ت ر | N130: 2ع ت | O130: ج م آ1 | T130: 3ل أ | Z130: 3آف | AA130: 2ت إ | AB130: 3ع ت2 | AG130: 3ت إ | AH130: ج م ع1 | AI130: 3ع ت 1 | AJ130: ج م آ2 | AK130: 2آف 2 | AN130: 2ل أ | AO130: ج م ع3
C131: 10-09 | E131: ج م ع1 | G131: 2ع ت | H131: ج م ع2 | I131: 2ت ر | J131: ج م ع3 | K131: 2ت ر | L131: ج م ع4 | M131: 3ت ر | N131: 3ع ت2 | O131: 3ع ت 1 | T131: 3ل أ | Z131: 3آف | AB131: 2آف 2 | AG131: 3ت إ | AI131: 2ت إ | AJ131: ج م آ2 | AK131: 2آف 1 | AN131: 2ل أ | AO131: ج م آ1
C132: 11-10 | D132: 2ل أ | E132: 3آف | G132: 3ع ت 1 | I132: 3ت ر | J132: ج م آ2 | K132: 3ت ر | M132: ج م ع2 | N132: 2ت ر | O132: ج م ع1 | R132: 2آف 1 | T132: 3ت إ | Z132: 2ع ت | AA132: 3ع ت2 | AG132: 2ت إ | AH132: 3ل أ | AJ132: ج م ع3 | AK132: ج م آ1 | AN132: 2آف 1 | AO132: ج م ع4
C133: 12-11 | D133: ج م ع3 | E133: 3ت إ | G133: 3ع ت2 | H133: ج م ع4 | I133: 3ت ر | J133: ج م آ1 | K133: 3ت ر | N133: 2ت ر | R133: ج م ع2 | Z133: 2آف 2 | AA133: 2آف 1 | AB133: 3ع ت 1 | AG133: 2ت إ | AH133: 2آف 1 | AI133: 2ل أ | AJ133: 2ع ت | AN133: ج م ع1 | AO133: ج م آ2
B134: الأربعاء | C134: 09-08 | G134: 3ع ت2 | H134: ج م آ1 | L134: ج م ع3 | S134: ج م ع3 | T134: 3ت إ | U134: 3آف | W134: ج م آ2 | AB134: 3ع ت 1 | AD134: 2ع ت | AE134: ج م ع1 | AF134: 2ت إ | AH134: 3ت ر | AJ134: ج م ع4 | AK134: 2آف 2 | AL134: 2ت ر | AM134: 2آف 1 | AN134: ج م ع2 | AP134: 3ل أ
C135: 10-09 | G135: 3ع ت2 | H135: ج م ع4 | L135: ج م ع3 | S135: ج م ع3 | T135: ج م ع2 | U135: 3آف | W135: ج م آ2 | Y135: 3ت إ | AB135: 3ت ر | AD135: 2آف 2 | AE135: ج م آ1 | AF135: 2ت إ | AH135: 3ل أ | AJ135: 2ع ت | AK135: 2ت ر | AL135: 3ع ت 1 | AM135: 2آف 1 | AN135: ج م ع1 | AP135: 2ل أ
C136: 11-10 | G136: 3ع ت 1 | H136: ج م ع2 | L136: ج م ع3 | S136: ج م ع3 | T136: 3ل أ | U136: 2آف 1 | W136: 3ت ر | X136: 2ت ر | Y136: ج م آ1 | AB136: 3ع ت2 | AD136: 3آف | AE136: ج م آ2 | AH136: ج م ع1 | AI136: 2ت إ | AL136: 3ت إ | AM136: 2ع ت | AN136: 2ل أ | AQ136: ج م ع4 | AR136: 2آف 2
C137: 12-11 | G137: 3ع ت 1 | H137: ج م ع2 | L137: ج م ع3 | S137: ج م ع3 | T137: ج م ع1 | W137: ج م آ1 | X137: 2ت إ | AB137: 3ت إ | AD137: 2ع ت | AH137: 3آف | AI137: 3ع ت2 | AJ137: ج م آ2 | AK137: 2آف 1 | AL137: 3ت ر | AM137: 3ل أ | AN137: 2ل أ | AQ137: ج م ع4 | AR137: 2آف 2
C138: 14-13 | D138: ج م ع3 | E138: ج م ع1 | F138: 2ت ر | I138: 3ت ر | J138: ج م آ1 | K138: 3ت ر | P138: 3ع ت 1 | R138: ج م ع4 | V138: 2آف 2 | W138: ج م آ1 | X138: 3ع ت2 | Y138: ج م آ2 | Z138: 2ل أ | AC138: 3آف | AD138: 2ت إ | AH138: 3ل أ | AI138: 3ت إ | AN138: ج م ع2
C139: 15-14 | D139: ج م ع3 | E139: 3ت إ | F139: 2ت إ | I139: 3ت ر | J139: ج م آ1 | K139: 3ت ر | P139: ج م ع1 | R139: ج م ع2 | V139: 2ع ت | W139: ج م آ1 | X139: 2ل أ | Y139: ج م ع4 | Z139: 2ت ر | AA139: 3ل أ | AC139: 2آف 1 | AI139: 3ع ت 1 | AN139: 2آف 2 | AO139: ج م آ2 | AQ139: 3آف | AR139: 3ع ت2
C140: 16-15 | D140: ج م آ2 | F140: 3ت ر | I140: ج م ع3 | K140: ج م ع3 | P140: ج م ع3 | V140: ج م ع4 | X140: 2ت ر | Y140: 3ت إ | Z140: 2ع ت | AA140: 3ع ت 1 | AC140: 3ل أ | AD140: 2آف 1 | AH140: ج م ع2 | AI140: 2ل أ | AO140: 2ت إ | AQ140: 3آف | AR140: ج م ع2
C141: 17-16 | I141: ج م ع1 | K141: ج م ع1 | V141: ج م ع3 | AA141: 3ت ر | AO141: ج م ع4
B142: الخميس | C142: 09-08 | E142: 3ت إ | F142: 3ت ر | G142: 2ع ت | L142: ج م ع4 | M142: ج م آ2 | N142: 3ع ت2 | O142: 3ع ت 1 | P142: ج م ع1 | Q142: 3ع ت2 | R142: ج م ع4 | S142: ج م ع3 | Y142: ج م ع2 | Z142: 2ت ر | AC142: 2آف 1 | AE142: 3ل أ | AF142: 2ت إ | AK142: 2آف 2 | AO142: ج م آ1 | AP142: 2ل أ
C143: 10-09 | D143: ج م ع3 | E143: 3ل أ | F143: 3ت ر | G143: 2ع ت | L143: ج م ع4 | M143: ج م ع3 | N143: 3ع ت2 | O143: ج م ع1 | Q143: 3ع ت2 | R143: ج م ع4 | S143: 2آف 2 | X143: 2ت إ | Y143: ج م آ1 | Z143: 3آف | AC143: 2آف 1 | AE143: 3ع ت 1 | AF143: 3ت إ | AK143: 2ت ر | AO143: ج م آ2 | AP143: 2ل أ
C144: 11-10 | D144: ج م آ2 | E144: ج م ع1 | F144: 2ت ر | L144: ج م ع4 | M144: 3ت ر | N144: 3ع ت2 | P144: 3ع ت 1 | Q144: 3ع ت2 | R144: ج م ع4 | S144: 2ع ت | X144: 2ل أ | Y144: ج م ع3 | Z144: 2آف 2 | AA144: 2ت إ | AC144: 3آف | AG144: 3ت إ | AK144: ج م ع1 | AP144: 3ل أ | AQ144: ج م ع2 | AR144: 2آف 1
C145: 12-11 | D145: 2آف 2 | F145: 2ت إ | L145: ج م ع4 | N145: 3ع ت2 | P145: 3ع ت 1 | Q145: 3ع ت2 | R145: ج م ع4 | S145: 2ع ت | X145: 2ت ر | Y145: ج م آ2 | Z145: 2ل أ | AA145: 3ل أ | AC145: 3آف | AE145: 3ت ر | AG145: 3ت إ | AK145: ج م ع1 | AO145: ج م ع3 | AQ145: ج م ع2 | AR145: 2آف 1
C146: 14-13 | H146: ج م ع4 | I146: 2ت ر | J146: ج م آ2 | K146: 2ت ر | L146: 2آف 2 | O146: ج م آ1 | Q146: ج م آ1 | T146: ج م ع2 | U146: 3ع ت 1 | V146: ج م ع3 | W146: ج م آ2 | Y146: 3ت إ | AA146: 2آف 1 | AD146: 2ل أ | AF146: 2ت إ | AI146: 3ع ت2 | AL146: 3ت ر | AM146: 3آف | AN146: ج م ع1 | AQ146: 3ل أ
C147: 15-14 | H147: ج م ع2 | I147: 2ت ر | J147: ج م آ2 | K147: 2ت ر | L147: ج م ع3 | N147: 2ع ت | O147: ج م آ1 | Q147: ج م آ1 | T147: ج م ع1 | U147: 3آف | V147: ج م ع4 | W147: ج م آ2 | AA147: 3ت ر | AD147: 3ت إ | AF147: 2ت إ | AI147: 2ل أ | AL147: 3ع ت2 | AM147: 2آف 1 | AN147: 2آف 2 | AQ147: 3ل أ | AR147: 3ع ت 1
C148: 16-15 | I148: ج م ع4 | J148: ج م ع2 | K148: ج م ع4 | N148: 2ت ر | P148: ج م ع2 | Q148: ج م ع2/4 | U148: 2آف 1 | V148: 2آف 2 | W148: 3ت ر | Y148: ج م ع1 | AD148: 2ت إ | AF148: ج م ع 2 | AL148: 3ت ر | AM148: 3ع ت 1 | AN148: 2ل أ | AR148: 3ع ت 1
C149: 17-16

Sheet بينات التلاميد
A3: رقم التسجيل | B3: اللقب و الاســم | C3: تاريخ الميلاد | D3: مكان الميلاد | E3: الجنس | F3: الصفة | G3: القسم | H3: إسم الولي | I3: مهنة الولي | J3: العنوان | K3: القسم بالاحرف | L3: ر ت | M3: تاريخ الخروج | N3: تاريخ الدخول | O3: أكتوبر
O4: دخول | P4: خروج
A5: 2 | B5: امحمدي بشرى | C5: 2000-05-04 | D5: مغنية | E5: أ | F5: م2 | G5: 3ت.ر01 | H5: امحمدي الشيخ | J5: قرية عقيد عباس | K5: السنة الثالثة ثانوي تقني رياضي | L5: 2 | M5: //////
A6: 1 | B6: أوكيلي دنيا | C6: 2000-08-30 | D6: مغنية | E6: أ | F6: م2 | G6: 3ت.ر01 | H6: أوكيلي ميلود | J6: حي الركيزة حمام بوغرارة 13320 | K6: السنة الثالثة ثانوي تقني رياضي | L6: 1 | M6: ////// | O6: د ن1
A7: 3 | B7: برودي بشرى | C7: 2000-07-06 | D7: مغنية | E7: أ | F7: م2 | G7: 3ت.ر01 | H7: برودي عبد القادر | J7: قرية البخاتة مغنية | K7: السنة الثالثة ثانوي تقني رياضي | L7: 3 | M7: //////
A8: 5 | B8: بلميمون ابتسام | C8: 2000-07-25 | D8: مغنية | E8: أ | F8: خ2 | G8: 3ت.ر01 | H8: بلميمون عبد القادر | J8: شارع01 رقم 34 حي الشهداء ـ مغنية | K8: السنة الثالثة ثانوي تقني رياضي | L8: 5 | M8: //////
A9: 6 | B9: بوعناني أيمن | C9: 2001-12-10 | D9: مغنية | E9: ذ | F9: خ1 | G9: 3ت.ر01 | H9: بوعناني غياث | J9: عمارة A06 حي القاضي - مغنية | K9: السنة الثالثة ثانوي تقني رياضي | L9: 6 | M9: //////
A10: 7 | B10: تابتي فاطنة | C10: 1999-01-13 | D10: مغنية | E10: أ | F10: م2 | G10: 3ت.ر01 | H10: تابتي محمد | J10: الطريق الوطني رقم 35 الكفاف ـ مغنية | K10: السنة الثالثة ثانوي تقني رياضي | L10: 7 | M10: //////
A11: 9 | B11: حمادي أمحمد عماد | C11: 1999-09-02 | D11: مغنية | E11: ذ | F11: خ1 | G11: 3ت.ر01 | H11: حمادي يوسف | I11: ع1 | J11: حي الشهداء ـ مغنية | K11: السنة الثالثة ثانوي تقني رياضي | L11: 9 | M11: //////
A12: 10 | B12: دخيسي عثمان | C12: 2000-02-07 | D12: مغنية | E12: ذ | F12: م1 | G12: 3ت.ر01 | H12: دخيسي محمد | J12: قرية اولاد الشارف ـ مغنية | K12: السنة الثالثة ثانوي تقني رياضي | L12: 10
A13: 11 | B13: زناقي شريفة | C13: 2000-04-04 | D13: مغنية | E13: أ | F13: م2 | G13: 3ت.ر01 | H13: زناقي عمر | J13: قرية بوسدرة البخاتة ، مغنية | K13: السنة الثالثة ثانوي تقني رياضي | L13: 11 | M13: ////// | O13: ص ن1 | P13: ص خ خ1
A14: 13 | B14: طوالة بهاء الدين | C14: 2000-05-08 | D14: مغنية | E14: ذ | F14: م1 | G14: 3ت.ر01 | H14: طوالة الهبري | J14: قرية المصامدة ، مغنية | K14: السنة الثالثة ثانوي تقني رياضي | L14: 13 | M14: //////
A15: 14 | B15: قادري رابح صغير أمين | C15: 1999-09-30 | D15: الغزوات | E15: ذ | F15: خ1 | G15: 3ت.ر01 | H15: قادري عبد العزيز | I15: ع1 | J15: حي الشهداء ـ مغنية | K15: السنة الثالثة ثانوي تقني رياضي | L15: 14 | M15: //////
A16: 15 | B16: مرغاد إلياس | C16: 1997-07-08 | D16: مغنية | E16: ذ | F16: خ1 | G16: 3ت.ر01 | H16: مرغاد عبد الرزاق | I16: ع1 | J16: حي الشهداء ـ مغنية | K16: السنة الثالثة ثانوي تقني رياضي | L16: 15 | M16: //////
A17: 16 | B17: مزاري أيمن | C17: 2000-05-02 | D17: مغنية | E17: ذ | F17: م1 | G17: 3ت.ر01 | H17: مزاري العيد | J17: حي الركيزة حمام بوغرارة 13320 | K17: السنة الثالثة ثانوي تقني رياضي | L17: 16 | M17: //////
A18: 18 | B18: منصور إيمان دينا زاد | C18: 2000-07-27 | D18: مغنية | E18: أ | F18: م2 | G18: 3ت.ر01 | H18: منصور محمد | J18: قرية المصامدة ، مغنية | K18: السنة الثالثة ثانوي تقني رياضي | L18: 18 | M18: //////
A19: 19 | B19: منصوري المهدي | C19: 1997-04-09 | D19: مغنية | E19: ذ | F19: ن1 | G19: 3ت.ر01 | H19: منصوري محمد | I19: ع1 | J19: حمام بوغرارة 13320 | K19: السنة الثالثة ثانوي علوم تجريبية | L19: 19 | M19: //////
A20: 16
A21: 17
A22: 18
A23: 19
A24: 4 | B24: بلعالية محمد الأمين | C24: 2000-04-28 | D24: مغنية | E24: ذ | F24: م1 | G24: 3ت.ر01 | H24: بلعالية محمد | J24: قرية العقيد عباس ـ مغنية | K24: السنة الثالثة ثانوي تقني رياضي | L24: 4 | M24: //////
A25: 8 | B25: حماد محمد الأمين | C25: 1997-04-06 | D25: مغنية | E25: ذ | F25: ن1 | G25: 3ت.ر01 | H25: حماد دريوش | I25: ع1 | J25: حمام بوغرارة 13320 | K25: السنة الثالثة ثانوي تقني رياضي | L25: 8 | M25: //////
A26: 12 | B26: سكران عبد الهادي | C26: 2000-04-12 | D26: مغنية | E26: ذ | F26: م1 | G26: 3ت.ر01 | H26: سكران مصطفي | J26: قرية لكفاف | K26: السنة الثالثة ثانوي تقني رياضي | L26: 12 | M26: //////
A27: 17 | B27: مزاري عبد الله | C27: 2000-11-16 | D27: مغنية | E27: ذ | F27: م1 | G27: 3ت.ر01 | H27: مزاري بلخير | J27: حمام بوغرارة | K27: السنة الثالثة ثانوي تقني رياضي | L27: 17 | M27: //////
A28: 20 | B28: موسى أيوب | C28: 1999-03-03 | D28: مغنية | E28: ذ | F28: خ1 | G28: 3ت.ر01 | H28: موسى محمد | I28: ع1 | J28: حي الشهداء حي جابر رقم 17 مغنية | K28: السنة الثالثة ثانوي علوم تجريبية | L28: 20 | M28: //////
A29: 21 | B29: هداجي أمير يونس | C29: 2000-07-30 | D29: مغنية | E29: ذ | F29: م1 | G29: 3ت.ر01 | H29: هداجي عبد الجليل | J29: قرية اولاد الشارف مغنية | K29: السنة الثالثة ثانوي علوم تجريبية | L29: 21 | M29: //////
A30: 22 | B30: وادفل سارة | C30: 2000-02-19 | D30: مغنية | E30: أ | F30: خ2 | G30: 3ت.ر01 | H30: وادفل بن يونس | J30: حي الشهداء رقم 10 | K30: السنة الثالثة ثانوي علوم تجريبية | L30: 22 | M30: //////
A31: 27
A32: 28
A33: 29
A34: 30
A35: 23 | B35: برحيل وداد | C35: 2000-08-28 | D35: مغنية | E35: أ | F35: م2 | G35: 3ع.تج01 | H35: برحيل عبد الرحمن | J35: قرية المصامدة ـ مغنية | K35: السنة الثالثة ثانوي علوم تجريبية | L35: 23 | M35: //////
A36: 24 | B36: بعوش مريم | C36: 1998-01-28 | D36: مغنية | E36: أ | F36: م2 | G36: 3ع.تج01 | H36: بعوش لحسن | J36: قرية العقيد عباس ، مغنية | K36: السنة الثالثة ثانوي علوم تجريبية | L36: 24 | M36: //////
A37: 25 | B37: بلحسن حسين | C37: 2000-03-01 | D37: مغنية | E37: ذ | F37: م1 | G37: 3ع.تج01 | H37: بلحسن عبد الرزاق | J37: مزرعة الشرقاي العيد ، مغنية | K37: السنة الثالثة ثانوي علوم تجريبية | L37: 25 | M37: //////
A38: 26 | B38: بوزيان بلال | C38: 1998-11-08 | D38: مغنية | E38: ذ | F38: خ1 | G38: 3ع.تج01 | H38: بوزيان أحمد | I38: ع1 | J38: حي الشهداء ، مغنية | K38: السنة الثالثة ثانوي علوم تجريبية | L38: 26 | M38: //////
A39: 27 | B39: تابتي لخضر | C39: 1998-04-12 | D39: مغنية | E39: ذ | F39: م1 | G39: 3ع.تج01 | H39: تابتي لخضر | J39: الطريق الوطني رقم 35 الكفاف ، مغنية | K39: السنة الثالثة ثانوي علوم تجريبية | L39: 27 | M39: //////
A40: 28 | B40: تواتي نادية | C40: 2000-01-15 | D40: مغنية | E40: أ | F40: م2 | G40: 3ع.تج01 | H40: تواتي عبد القادر | J40: قرية أولاد الشارف ، مغنية | K40: السنة الثالثة ثانوي علوم تجريبية | L40: 28 | M40: //////
A41: 29 | B41: جزيري محمد | C41: 1999-06-26 | D41: مغنية | E41: ذ | F41: م1 | G41: 3ع.تج01 | H41: جزيري علي | J41: قرية بوسدرة البخاتة ـ مغنية | K41: السنة الثالثة ثانوي علوم تجريبية | L41: 29 | M41: //////
A42: 30 | B42: حميدي أسية | C42: 2000-04-24 | D42: مغنية | E42: أ | F42: م2 | G42: 3ع.تج01 | H42: حميدي موسى | J42: حي الباطوار شارع 17 الباب 06 مغنية | K42: السنة الثالثة ثانوي علوم تجريبية | L42: 30 | M42: //////
A43: 31 | B43: خاطر منال | C43: 1999-11-03 | D43: مغنية | E43: أ | F43: ن2 | G43: 3ع.تج01 | H43: خاطر أحمد | I43: ع2 | J43: قرية بوسدرة البخاتة ، مغنية | K43: السنة الثالثة ثانوي علوم تجريبية | L43: 31 | M43: //////
A44: 32 | B44: خروبي فاطنة | C44: 2000-06-04 | D44: مغنية | E44: أ | F44: م2 | G44: 3ع.تج01 | H44: خروبي امعمر | J44: العقيد عباس | K44: السنة الثالثة ثانوي علوم تجريبية | L44: 32 | M44: //////
A45: 33 | B45: داود رامي كمال الدين | C45: 1999-08-08 | D45: عين الترك | E45: ذ | F45: ن1 | G45: 3ع.تج01 | H45: الطيب | I45: ع1 | J45: حي أولاد بن صابر ، مغنية | K45: السنة الثالثة ثانوي علوم تجريبية | L45: 33 | M45: //////
A46: 34 | B46: دمامن محمد | C46: 2000-05-28 | D46: مغنية | E46: ذ | F46: م1 | G46: 3ع.تج01 | H46: دمامن خالد | J46: قرية لكفاف مغنية | K46: السنة الثالثة ثانوي علوم تجريبية | L46: 34 | M46: //////
A47: 35 | B47: زيني محمد بلال | C47: 2000-08-31 | D47: مغنية | E47: ذ | F47: م1 | G47: 3ع.تج01 | H47: زيني واسيني | J47: اولاد الشارف مغنية تلمسان | K47: السنة الثالثة ثانوي علوم تجريبية | L47: 35 | M47: //////
A48: 36 | B48: صدوقي صالح | C48: 2000-02-24 | D48: مغنية | E48: ذ | F48: م1 | G48: 3ع.تج01 | H48: صدوقي يماني | J48: قرية العقيد لطيفي L4 B2 مغنية | K48: السنة الثالثة ثانوي علوم تجريبية | L48: 36 | M48: //////
A49: 37 | B49: ضيف الله محمد الشريف | C49: 1999-08-31 | D49: مغنية | E49: ذ | F49: خ1 | G49: 3ع.تج01 | H49: ضيف الله علي | I49: ع1 | J49: شارع 25 حي الشهداء ـ مغنية | K49: السنة الثالثة ثانوي علوم تجريبية | L49: 37 | M49: //////
A50: 38 | B50: طاهي نهال فاطمة الزهراء | C50: 2000-04-11 | D50: مغنية | E50: أ | F50: خ2 | G50: 3ع.تج01 | H50: طاهي فتحي | J50: حي بلال العمارة رقم04 الطابق3 | K50: السنة الثالثة ثانوي علوم تجريبية | L50: 38 | M50: //////
A51: 39 | B51: عبد النبي زكية | C51: 1999-10-12 | D51: أولاد ميمون | E51: أ | F51: ن2 | G51: 3ع.تج01 | H51: عبد النبي عبد القادر | I51: ع2 | J51: الطريق الوطني رقم 35 الكفاف ، مغنية | K51: السنة الثالثة ثانوي علوم تجريبية | L51: 39 | M51: //////
A52: 40 | B52: عرقوب عبد اللطيف | C52: 1999-04-21 | D52: بشار | E52: ذ | F52: ن1 | G52: 3ع.تج01 | H52: عرقوب جمال | I52: ع1 | J52: قرية المصامدة ـ مغنية | K52: السنة الثالثة ثانوي علوم تجريبية | L52: 40 | M52: //////
A53: 41 | B53: عميرات وليد | C53: 2000-06-18 | D53: مغنية | E53: ذ | F53: خ1 | G53: 3ع.تج01 | H53: محمد | K53: السنة الثالثة ثانوي علوم تجريبية | L53: 41 | M53: //////
A54: 42 | B54: قاشور محمد شعيب | C54: 1999-03-28 | D54: مغنية | E54: ذ | F54: خ1 | G54: 3ع.تج01 | H54: قاشور محمد | I54: ع1 | J54: رقم 16 شارع محطة القطار ، مغنية | K54: السنة الثالثة ثانوي علوم تجريبية | L54: 42 | M54: //////
A55: 43 | B55: كلاليش منال | C55: 2000-11-14 | D55: حسين داي | E55: أ | F55: خ2 | G55: 3ع.تج01 | H55: كلاليش سعيد | J55: 27حي 240 مسكن حي الغابات مغنية | K55: السنة الثالثة ثانوي علوم تجريبية | L55: 43 | M55: //////
A56: 44 | B56: لكحل عماد | C56: 2000-06-06 | D56: مغنية | E56: ذ | F56: م1 | G56: 3ع.تج01 | H56: لكحل مصطفي | J56: اولاد قدور الصغار مغنية | K56: السنة الثالثة ثانوي علوم تجريبية | L56: 44 | M56: //////
A57: 45 | B57: مزاري دنيا زاد | C57: 2000-03-16 | D57: مغنية | E57: أ | F57: م2 | G57: 3ع.تج01 | H57: مزاري واسيني | J57: قرية البخاتة بوسدرة | K57: السنة الثالثة ثانوي علوم تجريبية | L57: 45 | M57: //////
A58: 46 | B58: مزيان يسرى نورالهدى | C58: 2000-08-16 | D58: مغنية | E58: أ | F58: خ2 | G58: 3ع.تج01 | H58: مزيان ميلود | J58: حي الشهداء رقم39 | K58: السنة الثالثة ثانوي علوم تجريبية | L58: 46 | M58: //////
A59: 47 | B59: هاملي سماح | C59: 1997-10-16 | D59: مغنية | E59: أ | F59: خ2 | G59: 3ع.تج01 | H59: هاملي عبد العزيز | J59: حي بلال رقم 41 ، مغنية | K59: السنة الثالثة ثانوي علوم تجريبية | L59: 47 | M59: //////
A68: 48 | B68: العرباوي محمد عبد الإله | C68: 1997-10-10 | D68: مغنية | E68: ذ | F68: ن1 | G68: 3ع.تج02 | H68: العرباوي أحمد | J68: 05 الحي السكني ، مغنية | K68: السنة الثالثة ثانوي علوم تجريبية | L68: 48 | M68: //////
A69: 49 | B69: القرمة محمد رياض | C69: 2000-05-19 | D69: مغنية | E69: ذ | F69: م1 | G69: 3ع.تج02 | H69: القرمة ميلود | J69: اولاد الشارف | K69: السنة الثالثة ثانوي علوم تجريبية | L69: 49 | M69: //////
A70: 50 | B70: بطيوي فرح | C70: 2000-05-04 | D70: مغنية | E70: أ | F70: م2 | G70: 3ع.تج02 | H70: بطيوي محمد | J70: مزرعة جابر حي الشهداء | K70: السنة الثالثة ثانوي علوم تجريبية | L70: 50 | M70: //////
A71: 51 | B71: بن براهيم شهرزاد | C71: 2000-06-24 | D71: مغنية | E71: أ | F71: م2 | G71: 3ع.تج02 | H71: بن براهيم محمد | J71: قرية | K71: السنة الثالثة ثانوي علوم تجريبية | L71: 51 | M71: //////
A72: 52 | B72: بن زغادي مروى | C72: 2000-09-23 | D72: مغنية | E72: أ | F72: م2 | G72: 3ع.تج02 | K72: السنة الثالثة ثانوي علوم تجريبية | L72: 52 | M72: //////
A73: 53 | B73: بن زغادي هديل | C73: 2000-03-06 | D73: مغنية | E73: أ | F73: خ2 | G73: 3ع.تج02 | H73: ين زغادي بن أعمر | I73: ع2 | J73: حي الشهداء ـ مغنية | K73: السنة الثالثة ثانوي علوم تجريبية | L73: 53 | M73: //////
A74: 54 | B74: بن سالم نجوى | C74: 2000-12-24 | D74: مغنية | E74: أ | F74: خ2 | G74: 3ع.تج02 | H74: بن سالم علي | J74: حي الشهداء | K74: السنة الثالثة ثانوي علوم تجريبية | L74: 54 | M74: //////
A75: 55 | B75: بن علي نور الايمان | C75: 2000-11-18 | D75: ندرومة | E75: أ | F75: خ2 | G75: 3ع.تج02 | H75: لحسن ناصر محمد | J75: قباضة الضرائب حي بن رشد | K75: السنة الثالثة ثانوي علوم تجريبية | L75: 55 | M75: //////
A76: 56 | B76: بوزي فتحي | C76: 2000-06-07 | D76: مغنية | E76: ذ | F76: خ1 | G76: 3ع.تج02 | H76: بوزي رمضان | J76: رقم 25 حي الشهداء ، مغنية | K76: السنة الثالثة ثانوي علوم تجريبية | L76: 56 | M76: //////
A77: 57 | B77: حجيمي شروق | C77: 2000-09-25 | D77: غفرون | E77: أ | F77: ن2 | G77: 3ع.تج02 | H77: حجيمي علي | J77: حي الشرطة 70مسكن عمارة 35 | K77: السنة الثالثة ثانوي علوم تجريبية | L77: 57 | M77: //////
A78: 58 | B78: زيتوني محمد الأمين | C78: 1997-10-30 | D78: مغنية | E78: ذ | F78: م1 | G78: 3ع.تج02 | H78: زيتوني محمد | J78: قرية المصامدة ـ مغنية | K78: السنة الثالثة ثانوي علوم تجريبية | L78: 58 | M78: //////
A79: 59 | B79: سبيع الواسيني | C79: 1999-08-03 | D79: مغنية | E79: ذ | F79: ن1 | G79: 3ع.تج02 | H79: سبيع نورالدين | I79: ع1 | J79: عمارة P قرية العقيد لطفي ـ مغنية | K79: السنة الثالثة ثانوي علوم تجريبية | L79: 59 | M79: //////
A80: 60 | B80: شارف شيماء | C80: 2000-08-16 | D80: مغنية | E80: أ | F80: خ2 | G80: 3ع.تج02 | H80: محمد | J80: ثكنة الحماية المدنية حي بلال مغنية | K80: السنة الثالثة ثانوي علوم تجريبية | L80: 60 | M80: //////
A81: 61 | B81: شقرون مريم | C81: 2000-12-20 | D81: مغنية | E81: أ | F81: م2 | G81: 3ع.تج02 | H81: شقرون لحسن | J81: حمام بوغرارة | K81: السنة الثالثة ثانوي علوم تجريبية | L81: 61 | M81: //////
A82: 62 | B82: شقرون هبة الرحمن | C82: 1999-03-10 | D82: مغنية | E82: أ | F82: خ2 | G82: 3ع.تج02 | H82: شقرون محمد | I82: ع2 | J82: شارع 01 منزل 25 حي الشهداء ، مغنية | K82: السنة الثالثة ثانوي علوم تجريبية | L82: 62 | M82: //////
A83: 63 | B83: عبد اللاهي حياة | C83: 1999-01-23 | D83: مغنية | E83: أ | F83: خ2 | G83: 3ع.تج02 | H83: عبد اللاهي محمد | I83: ع2 | J83: طريق المسبح رقم 01 حي الشهداء ـ مغنية | K83: السنة الثالثة ثانوي علوم تجريبية | L83: 63 | M83: //////
A84: 64 | B84: عبو محمد | C84: 1999-11-04 | D84: مغنية | E84: ذ | F84: م1 | G84: 3ع.تج02 | H84: عبو بوزيان | J84: اولاد الشارف | K84: السنة الثالثة ثانوي علوم تجريبية | L84: 64 | M84: //////
A85: 65 | B85: قزوي ياسين | C85: 1999-07-03 | D85: مغنية | E85: ذ | F85: ن1 | G85: 3ع.تج02 | H85: قزوي عبد القادر | I85: ع1 | J85: الحي السكني الجديد البريقي ـ مغنية | K85: السنة الثالثة ثانوي علوم تجريبية | L85: 65 | M85: //////
A86: 66 | B86: لزعر مروى | C86: 2000-10-25 | D86: مغنية | E86: أ | F86: خ2 | G86: 3ع.تج02 | H86: لزعر زوبير | J86: درب 0 رقم 04 حي المقراني ـ مغنية | K86: السنة الثالثة ثانوي علوم تجريبية | L86: 66 | M86: //////
A87: 67 | B87: مزاري إبراهيم | C87: 2000-03-16 | D87: مغنية | E87: ذ | F87: م1 | G87: 3ع.تج02 | H87: مزاري واسيني | J87: قرية بوسدرة | K87: السنة الثالثة ثانوي علوم تجريبية | L87: 67 | M87: //////
A88: 68 | B88: مزاري خديجة | C88: 2000-04-08 | D88: مغنية | E88: أ | F88: م2 | G88: 3ع.تج02 | H88: مزاري أحمد | J88: قرية بوسدرة البخاتة ، مغنية | K88: السنة الثالثة ثانوي علوم تجريبية | L88: 68 | M88: //////
A89: 69 | B89: منور فريال عبير | C89: 2000-09-19 | D89: مغنية | E89: أ | F89: م2 | G89: 3ع.تج02 | H89: منور احمد | J89: قرية العقيد عباس | K89: السنة الثالثة ثانوي علوم تجريبية | L89: 69 | M89: //////
A90: 70 | B90: هواري رجاء | C90: 1999-04-08 | D90: مغنية | E90: أ | F90: ن2 | G90: 3ع.تج02 | H90: هواري عبد القادر | I90: ع2 | J90: قرية المصامدة ، مغنية | K90: السنة الثالثة ثانوي علوم تجريبية | L90: 70 | M90: //////
A91: 71 | B91: واسطي أيمن | C91: 2000-06-10 | D91: مغنية | E91: ذ | F91: خ1 | G91: 3ع.تج02 | H91: واسطي محمد | J91: حي الشهداء ـ مغنية | K91: السنة الثالثة ثانوي علوم تجريبية | L91: 71 | M91: //////
A104: 72 | B104: أمبارك فايزة | C104: 2000-04-25 | D104: مغنية | E104: أ | F104: م2 | G104: 3ت.إ01 | H104: أمبارك ميلود | J104: قرية العقيد عباس | K104: السنة الثالثة ثانوي علوم تجريبية | L104: 72 | M104: //////
A105: 73 | B105: أير مقران عائشة صبرينة | C105: 1999-08-16 | D105: مغنية | E105: أ | F105: م2 | G105: 3ت.إ01 | H105: أير مقران محمد | J105: قرية المصامدة ، مغنية | K105: السنة الثالثة ثانوي علوم تجريبية | L105: 73 | M105: //////
A106: 74 | B106: العياطي إسلام | C106: 2000-09-10 | D106: مغنية | E106: ذ | F106: م1 | G106: 3ت.إ01 | H106: العياطي تهامي | J106: حمام بوغرارة | K106: السنة الثالثة ثانوي علوم تجريبية | L106: 74 | M106: //////
A107: 75 | B107: بسويعة صباح | C107: 1995-05-06 | D107: مغنية | E107: أ | F107: م2 | G107: 3ت.إ01 | H107: مطهري عايدة | J107: ثانوية الخوارزمي ـ مغنية | K107: السنة الثالثة ثانوي علوم تجريبية | L107: 75 | M107: //////
A108: 76 | B108: بن زعتر محمد الواسيني | C108: 1999-07-24 | D108: سيدي بلعباس | E108: ذ | F108: م1 | G108: 3ت.إ01 | H108: بن زعتر محمد | J108: قرية أولاد الشارف ، مغنية | K108: السنة الثالثة ثانوي علوم تجريبية | L108: 76 | M108: //////
A109: 77 | B109: بن ساحة جيلالي | C109: 1997-12-27 | D109: مغنية | E109: ذ | F109: خ1 | G109: 3ت.إ01 | H109: بن ساحة أحمد | J109: قرية المصامدة ـ مغنية | K109: السنة الثالثة ثانوي علوم تجريبية | L109: 77 | M109: //////
A110: 78 | B110: بن عابد سارة | C110: 1997-06-24 | D110: مغنية | E110: أ | F110: م2 | G110: 3ت.إ01 | H110: بن عابد بن أحمد | J110: قرية أولاد الشارف ، مغنية | K110: السنة الثالثة ثانوي علوم تجريبية | L110: 78 | M110: //////
A111: 79 | B111: بن موسى وردة | C111: 1999-04-14 | D111: مغنية | E111: أ | F111: م2 | G111: 3ت.إ01 | H111: بن موسى لحسن | J111: قرية بوسدرة البخاتة ، مغنية | K111: السنة الثالثة ثانوي علوم تجريبية | L111: 79 | M111: //////
A112: 80 | B112: بوزاهري إكرام | C112: 1999-03-21 | D112: مغنية | E112: أ | F112: ن2 | G112: 3ت.إ01 | H112: بوزاهري مصطفى | J112: قرية العقيد عباس ـ مغنية | K112: السنة الثالثة ثانوي علوم تجريبية | L112: 80 | M112: //////
A113: 81 | B113: بوشيخي شرف الدين | C113: 2000-09-26 | D113: مغنية | E113: ذ | F113: م1 | G113: 3ت.إ01 | H113: بوشيخي محمد | J113: قرية المصامدة ، مغنية | K113: السنة الثالثة ثانوي علوم تجريبية | L113: 81 | M113: //////
A114: 82 | B114: بوماجر يوسف | C114: 2000-06-07 | D114: مغنية | E114: ذ | F114: م1 | G114: 3ت.إ01 | H114: بوماجر أحمد | J114: محطة العقيد عباس ـ مغنية | K114: السنة الثالثة ثانوي علوم تجريبية | L114: 82 | M114: //////
A115: 83 | B115: ترنان شرف الدين | C115: 2000-12-21 | D115: مغنية | E115: ذ | F115: م1 | G115: 3ت.إ01 | H115: ترنان واسيني | J115: حي بلال ، مغنية | K115: السنة الثالثة ثانوي علوم تجريبية | L115: 83 | M115: //////
A116: 84 | B116: حمادي عبد الجليل | C116: 1999-03-27 | D116: مغنية | E116: ذ | F116: م1 | G116: 3ت.إ01 | H116: حمادي علي | J116: قرية المصامدة ـ مغنية | K116: السنة الثالثة ثانوي علوم تجريبية | L116: 84 | M116: //////
A117: 85 | B117: حمدوني إناس | C117: 1999-07-08 | D117: مغنية | E117: أ | F117: ن2 | G117: 3ت.إ01 | H117: حمدوني عبد القادر | J117: حي الشهداء ، مغنية | K117: السنة الثالثة ثانوي علوم تجريبية | L117: 85 | M117: //////
A118: 86 | B118: خاليد هشام | C118: 1998-09-03 | D118: الغزوات | E118: ذ | F118: ن1 | G118: 3ت.إ01 | H118: خاليد شريف | J118: حمام بوغرارة 13320 | K118: السنة الثالثة ثانوي علوم تجريبية | L118: 86 | M118: //////
A119: 87 | B119: خثير أمينة | C119: 1999-07-08 | D119: مغنية | E119: أ | F119: م2 | G119: 3ت.إ01 | H119: خثير محمد | J119: اولاد الشارف | K119: السنة الثالثة ثانوي علوم تجريبية | L119: 87 | M119: //////
A120: 88 | B120: خلوفي وليد | C120: 1998-08-11 | D120: مغنية | E120: ذ | F120: م1 | G120: 3ت.إ01 | H120: خلوفي رابح | J120: حي الركيزة حمام بوغرارة | K120: السنة الثالثة ثانوي علوم تجريبية | L120: 88 | M120: //////
A121: 89 | B121: خليد هاجر | C121: 2000-05-25 | D121: حمام بوغرارة | E121: أ | F121: م2 | G121: 3ت.إ01 | H121: خليد يحيى | J121: حمام بوغرارة 1333 | K121: السنة الثالثة ثانوي علوم تجريبية | L121: 89 | M121: //////
A122: 90 | B122: ديب أحمد طاع الله | C122: 1999-05-20 | D122: مغنية | E122: ذ | F122: ن1 | G122: 3ت.إ01 | H122: ديب بومدين | J122: قرية أولاد الشارف ـ مغنية | K122: السنة الثالثة ثانوي علوم تجريبية | L122: 90 | M122: //////
A123: 91 | B123: راجعي يوسف | C123: 2000-03-04 | D123: مغنية | E123: ذ | F123: م1 | G123: 3ت.إ01 | H123: راجعي عبد الحميد | J123: قرية أولاد الشارف ـ مغنية | K123: السنة الثالثة ثانوي علوم تجريبية | L123: 91 | M123: //////
A124: 92 | B124: زرقاني عبد الرحيم | C124: 1997-07-13 | D124: مغنية | E124: ذ | F124: م1 | G124: 3ت.إ01 | H124: زرقاني عبد الغني | J124: قرية أولاد الشارف ، مغنية | K124: السنة الثالثة ثانوي علوم تجريبية | L124: 92 | M124: //////
A125: 93 | B125: ساعد نسرين | C125: 1998-05-13 | D125: مغنية | E125: أ | F125: خ2 | G125: 3ت.إ01 | H125: ساعد حمزة | J125: قرية أولاد الشارف ـ مغنية | K125: السنة الثالثة ثانوي علوم تجريبية | L125: 93 | M125: //////
A126: 94 | B126: شباب عبد الوهاب | C126: 1997-06-15 | D126: مغنية | E126: ذ | F126: م1 | G126: 3ت.إ01 | H126: شباب مختار | J126: حمام بوغرارة 13320 | K126: السنة الثالثة ثانوي علوم تجريبية | L126: 94 | M126: //////
A127: 95 | B127: شقرون منال | C127: 2000-07-08 | D127: مغنية | E127: أ | F127: م2 | G127: 3ت.إ01 | H127: شقرون عبد الفتاح | J127: حمام بوغرارة | K127: السنة الثالثة ثانوي علوم تجريبية | L127: 95 | M127: //////
A128: 96 | B128: صديقي أمينة شيماء | C128: 1998-07-22 | D128: مغنية | E128: أ | F128: خ2 | G128: 3ت.إ01 | H128: صديقي محمد | J128: رقم 42 شارع شعبان حمدون ـ مغنية | K128: السنة الثالثة ثانوي علوم تجريبية | L128: 96 | M128: //////
A129: 97 | B129: ضيف بن أعمر | C129: 2000-04-24 | D129: مغنية | E129: ذ | F129: م1 | G129: 3ت.إ01 | H129: ضيف شيخ | J129: حمام بوغرارة 13320 | K129: السنة الثالثة ثانوي علوم تجريبية | L129: 97 | M129: //////
A130: 98 | B130: ضيف عماد الدين | C130: 1999-10-18 | D130: مغنية | E130: ذ | F130: م1 | G130: 3ت.إ01 | H130: ضيف بن عمر | J130: حمام بوغرارة 13320 | K130: السنة الثالثة ثانوي علوم تجريبية | L130: 98 | M130: //////
A131: 99 | B131: عباس جواد | C131: 2000-07-06 | D131: مغنية | E131: ذ | F131: م1 | G131: 3ت.إ01 | H131: محمد عباس | J131: حمام بوغرارة | K131: السنة الثالثة ثانوي تسييــر و اقتصــاد | L131: 99 | M131: //////
A132: 100 | B132: عبد المالك يوسف | C132: 1998-04-30 | D132: مغنية | E132: ذ | F132: م1 | G132: 3ت.إ01 | H132: عبد المالك محمد | J132: قرية أولاد الشارف ، مغنية | K132: السنة الثالثة ثانوي تسييــر و اقتصــاد | L132: 100 | M132: //////
A133: 101 | B133: علوش عبد الحكيم | C133: 1999-07-23 | D133: مغنية | E133: ذ | F133: ن1 | G133: 3ت.إ01 | H133: علوش محمد | J133: قرية بوسدرة البخاتة ، مغنية | K133: السنة الثالثة ثانوي تسييــر و اقتصــاد | L133: 101 | M133: //////
A134: 102 | B134: عمراوي شيماء | C134: 1999-09-02 | D134: مغنية | E134: أ | F134: ن2 | G134: 3ت.إ01 | H134: عمراوي عبد الحفيظ | J134: قرية العقيد عباس ـ مغنية | K134: السنة الثالثة ثانوي تسييــر و اقتصــاد | L134: 102 | M134: //////
A135: 103 | B135: قزوي محمد حبيب | C135: 1998-01-31 | D135: مغنية | E135: ذ | F135: ن1 | G135: 3ت.إ01 | H135: قزوي فوزي | J135: قرية العقيد عباس ، مغنية | K135: السنة الثالثة ثانوي تسييــر و اقتصــاد | L135: 103 | M135: //////
A136: 104 | B136: قعاد جميلة | C136: 2000-03-12 | D136: مغنية | E136: أ | F136: م2 | G136: 3ت.إ01 | H136: قعاد عبد القادر | J136: قرية المصامدة مغنية عند التاجر بوعزة القندوز | K136: السنة الثالثة ثانوي تسييــر و اقتصــاد | L136: 104 | M136: //////
A137: 105 | B137: قنشي أحلام | C137: 2000-07-26 | D137: مغنية | E137: أ | F137: خ2 | G137: 3ت.إ01 | H137: قنشي فوزي | J137: حي الشهداء منزل02 شارع02 | K137: السنة الثالثة ثانوي تسييــر و اقتصــاد | L137: 105 | M137: //////
A138: 106 | B138: كاملين معمر | C138: 1998-04-25 | D138: مغنية | E138: ذ | F138: م1 | G138: 3ت.إ01 | H138: كاملين صالح | J138: قرية المصامدة ـ مغنية | K138: السنة الثالثة ثانوي تسييــر و اقتصــاد | L138: 106 | M138: //////
A139: 107 | B139: لياني مروان | C139: 1999-08-12 | D139: مغنية | E139: ذ | F139: ن1 | G139: 3ت.إ01 | H139: لياني محمد | J139: حمام بوغرارة 13320 | K139: السنة الثالثة ثانوي تسييــر و اقتصــاد | L139: 107 | M139: //////
A140: 108 | B140: نميش صفاء حفيظة | C140: 1999-10-16 | D140: مغنية | E140: أ | F140: خ2 | G140: 3ت.إ01 | H140: نميش محمد | J140: حي الشهداء | K140: السنة الثالثة ثانوي تسييــر و اقتصــاد | L140: 108 | M140: //////
A141: 109 | B141: ولد علي أمينة | C141: 2000-08-30 | D141: مغنية | E141: أ | F141: م2 | G141: 3ت.إ01 | H141: ولد علي بومدين | J141: حمام بوغرارة | K141: السنة الثالثة ثانوي تسييــر و اقتصــاد | L141: 109 | M141: //////
A150: 110 | B150: أمحمدي جهان | C150: 1998-11-21 | D150: مغنية | E150: أ | F150: ن2 | G150: 3آ.فل01 | H150: أمحمدي محمد | J150: قرية أولاد قدور ـ مغنية | K150: السنة الثالثة ثانوي تسييــر و اقتصــاد | L150: 110 | M150: //////
A151: 111 | B151: بختي بشرى | C151: 1998-04-20 | D151: مغنية | E151: أ | F151: ن2 | G151: 3آ.فل01 | H151: بختي عبد الله | J151: قرية بوسدرة البخاتة ـ مغنية | K151: السنة الثالثة ثانوي تسييــر و اقتصــاد | L151: 111 | M151: //////
A152: 112 | B152: بداد أية فاطمة الزهراء | C152: 2000-09-23 | D152: سيدي بلعباس | E152: أ | F152: خ2 | G152: 3آ.فل01 | H152: بداد احمد | J152: 29 حي الشهداء | K152: السنة الثالثة ثانوي تسييــر و اقتصــاد | L152: 112 | M152: //////
A153: 113 | B153: بشلاغم سمية | C153: 1998-10-05 | D153: سبدو | E153: أ | F153: ن2 | G153: 3آ.فل01 | H153: اوكيلي مصطفى | J153: قرية أولاد الشارف ـ مغنية | K153: السنة الثالثة ثانوي تسييــر و اقتصــاد | L153: 113 | M153: //////
A154: 114 | B154: بن حامد فايزة | C154: 1997-11-04 | D154: مغنية | E154: أ | F154: خ2 | G154: 3آ.فل01 | H154: بن حامد عبد الخفيظ | J154: حي الشهداء ـ مغنبة | K154: السنة الثالثة ثانوي تسييــر و اقتصــاد | L154: 114 | M154: //////
A155: 115 | B155: بن شقرة سارة | C155: 1998-08-08 | D155: مغنية | E155: أ | F155: ن2 | G155: 3آ.فل01 | H155: بن شقرة عبد الكريم | J155: قرية المصامدة ـ مغنية | K155: السنة الثالثة ثانوي تسييــر و اقتصــاد | L155: 115 | M155: //////
A156: 116 | B156: بوزيدي مريم | C156: 1999-04-07 | D156: مغنية | E156: أ | F156: م2 | G156: 3آ.فل01 | H156: بوزيدي محمد | J156: ص.ب 512 مغنية | K156: السنة الثالثة ثانوي تسييــر و اقتصــاد | L156: 116 | M156: //////
A157: 117 | B157: توبردة مغنية | C157: 1998-11-23 | D157: مغنية | E157: أ | F157: ن2 | G157: 3آ.فل01 | H157: توبردة بن يعقوب | J157: قرية المصامدة ـ مغنية | K157: السنة الثالثة ثانوي تسييــر و اقتصــاد | L157: 117 | M157: //////
A158: 118 | B158: حابن اسمهان | C158: 1999-04-08 | D158: مغنية | E158: أ | F158: م2 | G158: 3آ.فل01 | H158: حاين عبد الحميد | J158: قرية البخاتة بوسدرة | K158: السنة الثالثة ثانوي تسييــر و اقتصــاد | L158: 118 | M158: //////
A159: 119 | B159: حاجي مونية | C159: 1998-04-29 | D159: مغنية | E159: أ | F159: خ2 | G159: 3آ.فل01 | H159: حاجي عبد الحكيم | J159: حمام بوغرارة 13320 | K159: السنة الثالثة ثانوي تسييــر و اقتصــاد | L159: 119 | M159: //////
A160: 120 | B160: حساين نبيلة | C160: 1999-07-01 | D160: مغنية | E160: أ | F160: م2 | G160: 3آ.فل01 | H160: حساين احمد | J160: قرية البخاتة | K160: السنة الثالثة ثانوي تسييــر و اقتصــاد | L160: 120 | M160: //////
A161: 121 | B161: حمادي أمال | C161: 1998-04-20 | D161: مغنية | E161: أ | F161: م2 | G161: 3آ.فل01 | H161: حمادي بن عمر | J161: محطة الأرصاد الجوية العقيد عباس ـ مغنية | K161: السنة الثالثة ثانوي تسييــر و اقتصــاد | L161: 121 | M161: //////
A162: 122 | B162: حمادي الواسيني | C162: 1999-06-21 | D162: مغنية | E162: ذ | F162: م1 | G162: 3آ.فل01 | H162: حمادي لخضر | J162: قرية بوسدرة البخاتة | K162: السنة الثالثة ثانوي تسييــر و اقتصــاد | L162: 122 | M162: //////
A163: 123 | B163: حمادي مغنية | C163: 2000-04-12 | D163: مغنية | E163: أ | F163: م2 | G163: 3آ.فل01 | H163: حمادي يحيى | J163: قرية بوسدرة البخاتة ـ مغنية | K163: السنة الثالثة ثانوي تسييــر و اقتصــاد | L163: 123 | M163: //////
A164: 124 | B164: دخيسي أحلام | C164: 2000-12-07 | D164: مغنية | E164: أ | F164: م2 | G164: 3آ.فل01 | H164: دخيسي حسين | J164: قرية بوسدرة البخاتة | L164: 124 | M164: //////
A165: 125 | B165: دعنون منال | C165: 1998-11-13 | D165: مغنية | E165: أ | F165: م2 | G165: 3آ.فل01 | H165: دعنون محمد | J165: باب العسة | K165: السنة الثالثة ثانوي تسييــر و اقتصــاد | L165: 125 | M165: //////
A166: 126 | B166: زرعي يامنة | C166: 2000-08-11 | D166: مغنية | E166: أ | F166: خ2 | G166: 3آ.فل01 | H166: زرعي سيدي محمد | J166: حي بلال | K166: السنة الثالثة ثانوي أداب و فلســـــفة | L166: 126 | M166: //////
A167: 127 | B167: زقاي شهيناز | C167: 1997-08-01 | D167: مغنية | E167: أ | F167: خ2 | G167: 3آ.فل01 | H167: زقاي محمد | J167: شارع 71 رقم 05 حي المدرجات ـ مغنية | K167: السنة الثالثة ثانوي أداب و فلســـــفة | L167: 127 | M167: //////
A168: 128 | B168: سلطاني سارة | C168: 1998-04-28 | D168: مغنية | E168: أ | F168: خ2 | G168: 3آ.فل01 | H168: سلطاني بن ثابت | J168: درب 16 رقم 35 حي الشهداء ، مغنية | K168: السنة الثالثة ثانوي أداب و فلســـــفة | L168: 128 | M168: //////
A169: 129 | B169: شرقي ليلى | C169: 1996-10-27 | D169: مغنية | E169: أ | F169: ن2 | G169: 3آ.فل01 | H169: شرقي محمد | J169: قرية أولاد قدور الكبار ـ مغنية | K169: السنة الثالثة ثانوي أداب و فلســـــفة | L169: 129 | M169: //////
A170: 130 | B170: صحراوي لمياء | C170: 1998-10-09 | D170: مغنية | E170: أ | F170: م2 | G170: 3آ.فل01 | H170: صحراوي حميد | J170: قرية بوسدرة البخاتة ـ مغنية | K170: السنة الثالثة ثانوي أداب و فلســـــفة | L170: 130 | M170: //////
A171: 131 | B171: عايشي عربية فاطمة الزهراء | C171: 1999-05-14 | D171: تلمسان | E171: أ | F171: م2 | G171: 3آ.فل01 | H171: عايشي شوقي | J171: قرية البخاتة بوسدرة | K171: السنة الثالثة ثانوي أداب و فلســـــفة | L171: 131 | M171: //////
A172: 132 | B172: عبد المالك جنات | C172: 1999-05-15 | D172: مغنية | E172: أ | F172: م2 | G172: 3آ.فل01 | H172: عبد المالك بن عمر | J172: قرية بوسدرة البخاتة مغنية | K172: السنة الثالثة ثانوي أداب و فلســـــفة | L172: 132 | M172: //////
A173: 133 | B173: عبد المالك فاطمة الزهراء | C173: 2000-11-03 | D173: مغنية | E173: أ | F173: خ2 | G173: 3آ.فل01 | H173: عبد المالك واسيني | J173: حي الشهداء شارع 22 رقم46 | K173: السنة الثالثة ثانوي أداب و فلســـــفة | L173: 133 | M173: //////
A174: 134 | B174: علوان مروى | C174: 1998-11-07 | D174: مغنية | E174: أ | F174: خ2 | G174: 3آ.فل01 | H174: علوان بشير | J174: قرية بوسدرة البخاتة ـ مغنية | K174: السنة الثالثة ثانوي أداب و فلســـــفة | L174: 134 | M174: //////
A175: 135 | B175: فوقي نور الهدى | C175: 1998-10-04 | D175: مغنية | E175: أ | F175: ن2 | G175: 3آ.فل01 | H175: فوقي بشير | J175: قرية أولاد الشارف ـ مغنية | K175: السنة الثالثة ثانوي أداب و فلســـــفة | L175: 135 | M175: //////
A176: 136 | B176: لعشب شيماء | C176: 2000-03-23 | D176: مغنية | E176: أ | F176: خ2 | G176: 3آ.فل01 | H176: لعشب احمد | J176: مسجد الامام البخاري حي الشهداء | K176: السنة الثالثة ثانوي أداب و فلســـــفة | L176: 136 | M176: //////
A177: 137 | B177: محياوي خديجة | C177: 2000-02-05 | D177: مغنية | E177: أ | F177: م2 | G177: 3آ.فل01 | H177: محياوي محمد | J177: قرية بوسدرة البخاتة | K177: السنة الثالثة ثانوي أداب و فلســـــفة | L177: 137 | M177: //////
A178: 138 | B178: مخفي باية | C178: 1999-09-10 | D178: مغنية | E178: أ | F178: خ2 | G178: 3آ.فل01 | H178: مخفي عبد الحكيم | J178: حي الشهداء | K178: السنة الثالثة ثانوي أداب و فلســـــفة | L178: 138 | M178: //////
A179: 139 | B179: مسارقي زينب | C179: 1998-09-02 | D179: مغنية | E179: أ | F179: م2 | G179: 3آ.فل01 | H179: مسارقي محمود | J179: درب 22 رقم 02 حي الشهداء ، مغنية | K179: السنة الثالثة ثانوي أداب و فلســـــفة | L179: 139 | M179: //////
A180: 140 | B180: مصار منال | C180: 2000-01-27 | D180: مغنية | E180: أ | F180: م2 | G180: 3آ.فل01 | H180: مصار محمد | J180: اولاد الشارف | K180: السنة الثالثة ثانوي أداب و فلســـــفة | L180: 140 | M180: //////
A181: 141 | B181: مقدم جميلة | C181: 1999-07-15 | D181: مغنية | E181: أ | F181: م2 | G181: 3آ.فل01 | H181: الحاج قدور | J181: قرية العقيد عباس اولاد قدور | K181: السنة الثالثة ثانوي أداب و فلســـــفة | L181: 141 | M181: //////
A182: 142 | B182: موساتي نادية | C182: 2000-11-29 | D182: مغنية | E182: أ | F182: م2 | G182: 3آ.فل01 | H182: موساتي ابن عمر | J182: قرية البخاتة | K182: السنة الثالثة ثانوي أداب و فلســـــفة | L182: 142 | M182: //////
A192: 143 | B192: أجد زينب | C192: 1997-05-04 | D192: مغنية | E192: أ | F192: م2 | G192: 3لغ أج01 | H192: أجد محمد | J192: سيدي مبارك ، بني بوسعيد | K192: السنة الثالثة ثانوي أداب و فلســـــفة | L192: 143 | M192: //////
A193: 144 | B193: أمبارك الهاشمي | C193: 1998-08-17 | D193: مغنية | E193: ذ | F193: م1 | G193: 3لغ أج01 | H193: امبارك رشيد | J193: دوار اولاد قدور | K193: السنة الثالثة ثانوي أداب و فلســـــفة | L193: 144 | M193: //////
A194: 145 | B194: العابد يسرى | C194: 2000-05-13 | D194: مغنية | E194: أ | F194: خ2 | G194: 3لغ أج01 | H194: العابد بن عمر | J194: الدرب الاول رقم16 حي بلال | K194: السنة الثالثة ثانوي أداب و فلســـــفة | L194: 145 | M194: //////
A195: 146 | B195: المسعود محمد سيف | C195: 2000-05-25 | D195: مغنية | E195: ذ | F195: م1 | G195: 3لغ أج01 | H195: المسعود مصطفي | J195: اولاد الشارف مغنية | K195: السنة الثالثة ثانوي أداب و فلســـــفة | L195: 146 | M195: //////
A196: 147 | B196: بلخوان نهاد | C196: 1999-03-24 | D196: مغنية | E196: أ | F196: خ2 | G196: 3لغ أج01 | H196: بلخوان محمد | J196: قرية أولاد الشارف ، مغنية | K196: السنة الثالثة ثانوي أداب و فلســـــفة | L196: 147 | M196: //////
A197: 148 | B197: بلغري آية | C197: 2000-07-17 | D197: مغنية | E197: أ | F197: خ2 | G197: 3لغ أج01 | H197: حسين | J197: حي المطمر | K197: السنة الثالثة ثانوي أداب و فلســـــفة | L197: 148 | M197: //////
A198: 149 | B198: بن اعمر رانيا | C198: 1998-07-21 | D198: مغنية | E198: أ | F198: ن2 | G198: 3لغ أج01 | H198: بن أعمر فوزي | J198: حي الركيزة ـ حمام بوغرارة | K198: السنة الثالثة ثانوي أداب و فلســـــفة | L198: 149 | M198: //////
A199: 150 | B199: بن عيسي وئام | C199: 2000-05-12 | D199: مغنية | E199: أ | F199: م2 | G199: 3لغ أج01 | H199: بن عيسي حميدي | J199: حي بوغزال عمارة أ البريقي | K199: السنة الثالثة ثانوي أداب و فلســـــفة | L199: 150 | M199: //////
A200: 151 | B200: بناصر خلود هديل | C200: 2000-02-24 | D200: مغنية | E200: أ | F200: خ2 | G200: 3لغ أج01 | H200: بناصر مجاهد | J200: حي الباطاوار | K200: السنة الثالثة ثانوي أداب و فلســـــفة | L200: 151 | M200: //////
A201: 152 | B201: بوشكري عبير | C201: 2000-06-26 | D201: مغنية | E201: أ | F201: م2 | G201: 3لغ أج01 | H201: بوشكري محمد | J201: قرية العقيد عباس | K201: السنة الثالثة ثانوي أداب و فلســـــفة | L201: 152 | M201: //////
A202: 153 | B202: تبحريتي إبراهيم | C202: 1999-08-25 | D202: مغنية | E202: ذ | F202: خ1 | G202: 3لغ أج01 | H202: بحريتي عزالدين | J202: حي الباطوار ، مغنية | K202: السنة الثالثة ثانوي أداب و فلســـــفة | L202: 153 | M202: //////
A203: 154 | B203: جباري وسيلة | C203: 1999-03-01 | D203: مغنية | E203: أ | F203: م2 | G203: 3لغ أج01 | H203: جبار ي الواسيني | J203: حي الركيزة ، حمام بوغرارة 13320 | K203: السنة الثالثة ثانوي أداب و فلســـــفة | L203: 154 | M203: //////
A204: 155 | B204: جوادي خديجة شيماء | C204: 1998-06-26 | D204: بني صاف | E204: أ | F204: خ2 | G204: 3لغ أج01 | H204: جوادي عبد الحميد | J204: حي بلال رقم 25 ، مغنية | K204: السنة الثالثة ثانوي أداب و فلســـــفة | L204: 155 | M204: //////
A205: 156 | B205: حفص نورية إيمان | C205: 2000-01-15 | D205: مغنية | E205: أ | F205: م2 | G205: 3لغ أج01 | H205: حفص احمد | J205: اولاد الشارف | K205: السنة الثالثة ثانوي أداب و فلســـــفة | L205: 156 | M205: //////
A206: 157 | B206: حوحو محمد عبد الحق | C206: 2001-01-07 | D206: مغنية | E206: ذ | F206: م1 | G206: 3لغ أج01 | H206: حوحو عقبة | J206: قرية اولاد الشارف شارع07 | K206: السنة الثالثة ثانوي أداب و فلســـــفة | L206: 157 | M206: //////
A207: 158 | B207: خش أميرة | C207: 2000-08-13 | D207: مغنية | E207: أ | F207: م2 | G207: 3لغ أج01 | H207: خش عبد الرزاق | J207: حمام بوغرارة | K207: السنة الثالثة ثانوي أداب و فلســـــفة | L207: 158 | M207: //////
A208: 159 | B208: دار أعمر حنان | C208: 2000-08-17 | D208: مغنية | E208: أ | F208: م2 | G208: 3لغ أج01 | H208: دار أعمر بومدين | J208: حمام بوغرارة الركيزة | K208: السنة الثالثة ثانوي أداب و فلســـــفة | L208: 159 | M208: //////
A209: 160 | B209: ديب أسية | C209: 2001-01-02 | D209: مغنية | E209: أ | F209: خ2 | G209: 3لغ أج01 | H209: ديب عبد الحميد | J209: شارع رقم 16 منزل رقم09 حي الشهداء | K209: السنة الثالثة ثانوي أداب و فلســـــفة | L209: 160 | M209: //////
A210: 161 | B210: راشدي رضوان | C210: 2000-02-23 | D210: مغنية | E210: ذ | F210: م1 | G210: 3لغ أج01 | H210: راشدي علي | J210: قرية أولاد الشارف ، مغنية | K210: السنة الثالثة ثانوي أداب و فلســـــفة | L210: 161 | M210: //////
A211: 162 | B211: زار رانيا | C211: 1998-06-27 | D211: مغنية | E211: أ | F211: خ2 | G211: 3لغ أج01 | H211: زار ميلود | J211: رقم 160 شارع تلمسان حي بلال ، مغنية | K211: السنة الثالثة ثانوي أداب و فلســـــفة | L211: 162 | M211: //////
A212: 163 | B212: زاوي أسماء | C212: 2000-11-13 | D212: مغنية | E212: أ | F212: خ2 | G212: 3لغ أج01 | H212: زاوي محمد | J212: حي الشهداء متوسطة عقبة بن نافع | K212: السنة الثالثة ثانوي أداب و فلســـــفة | L212: 163 | M212: //////
A213: 164 | B213: زموري صفاء | C213: 2000-10-07 | D213: مغنية | E213: أ | F213: خ2 | G213: 3لغ أج01 | H213: زموري بن عومر | J213: حي بلال محطة القطار | K213: السنة الثالثة ثانوي أداب و فلســـــفة | L213: 164 | M213: //////
A214: 165 | B214: شراك زينب | C214: 1998-03-31 | D214: مغنية | E214: أ | F214: خ2 | G214: 3لغ أج01 | H214: شراك يحيى | J214: حي بلال رقم 03 ، مغنية | K214: السنة الثالثة ثانوي أداب و فلســـــفة | L214: 165 | M214: //////
A215: 166 | B215: عفاني حسام | C215: 2000-01-11 | D215: مغنية | E215: ذ | F215: م1 | G215: 3لغ أج01 | H215: عفاني فؤاد | J215: قرية بوسدرة البخاتة ، مغنية | K215: السنة الثالثة ثانوي أداب و فلســـــفة | L215: 166 | M215: //////
A216: 167 | B216: غربي نجلاء سارة | C216: 2000-11-12 | D216: مغنية | E216: أ | F216: خ2 | G216: 3لغ أج01 | H216: غربي عمر | J216: حي الشهداء مغنية منزل رقم57 | K216: السنة الثالثة ثانوي أداب و فلســـــفة | L216: 167 | M216: //////
A217: 168 | B217: فراج جواد | C217: 1998-08-05 | D217: مغنية | E217: ذ | F217: ن1 | G217: 3لغ أج01 | H217: فراج بومدين | J217: حي 04 سكنات ، حمام بوغرارة 13320 | K217: السنة الثالثة ثانوي أداب و فلســـــفة | L217: 168 | M217: //////
A218: 169 | B218: قاشور سليمة | C218: 1999-03-07 | D218: مغنية | E218: أ | F218: خ2 | G218: 3لغ أج01 | H218: قاشور إدريس | J218: 16 شارع محطة القطار ، مغنية | K218: السنة الثالثة ثانوي أداب و فلســـــفة | L218: 169 | M218: //////
A219: 170 | B219: كردوسي جمال الدين | C219: 2000-11-17 | D219: مغنية | E219: ذ | F219: خ1 | G219: 3لغ أج01 | H219: عبد اللطيف | J219: حي مزوار رقم05 مغنية | K219: السنة الثالثة ثانوي أداب و فلســـــفة | L219: 170 | M219: //////
A220: 171 | B220: مزاري إكرام | C220: 1998-08-28 | D220: مغنية | E220: أ | F220: ن2 | G220: 3لغ أج01 | H220: مزاري الطيب | J220: قرية بوسدرة البخاتة ، مغنية | K220: السنة الثالثة ثانوي أداب و فلســـــفة | L220: 171 | M220: //////
A221: 172 | B221: موسليم أمينة | C221: 2001-01-02 | D221: مغنية | E221: أ | F221: خ2 | G221: 3لغ أج01 | H221: موسليم حسين | J221: حي الشهداء مغنية | K221: السنة الثالثة ثانوي أداب و فلســـــفة | L221: 172 | M221: //////
A222: 173 | B222: واسطي عبد السميع | C222: 1999-07-05 | D222: مغنية | E222: ذ | F222: خ1 | G222: 3لغ أج01 | H222: واسطي مصطفي | J222: درب 11 منزل14 الشهداء | K222: السنة الثالثة ثانوي أداب و فلســـــفة | L222: 173 | M222: //////
A231: 1 | B231: بن هدي مروة | C231: 1999-07-30 | D231: مغنية | E231: أ | F231: م2 | G231: 2ت.ر01 | H231: بن هدي احمد | J231: قرية بوسدرة البخاتة | K231: السنة الثالثة ثانوي لغــــــــات أجنبية | L231: 175 | M231: //////
A232: 2 | B232: بوسوماح شيماء | C232: 2001-02-04 | D232: مغنية | E232: أ | F232: م2 | G232: 2ت.ر01 | H232: عبد العزيز | J232: قرية العقيد عباس ، مغنية | K232: السنة الثالثة ثانوي لغــــــــات أجنبية | L232: 177 | M232: //////
A233: 3 | B233: حدوشي محمد | C233: 2001-05-22 | D233: بني بوسعيد | E233: ذ | F233: م1 | G233: 2ت.ر01 | H233: احمد | J233: قرية المصامدة مغنية | K233: السنة الثالثة ثانوي لغــــــــات أجنبية | L233: 178 | M233: //////
A234: 4 | B234: راجعي محمد | C234: 2001-09-16 | D234: مغنية | E234: ذ | F234: م1 | G234: 2ت.ر01 | H234: عبد الحاكم | J234: اولاد الشارف رواجعية | K234: السنة الثالثة ثانوي لغــــــــات أجنبية | L234: 180 | M234: //////
A235: 5 | B235: رجالة منال | C235: 2001-06-03 | D235: الغزوات | E235: أ | F235: م2 | G235: 2ت.ر01 | H235: لباس | J235: اولاد الشارف مغنية | K235: السنة الثالثة ثانوي لغــــــــات أجنبية | L235: 181 | M235: //////
A236: 6 | B236: شارف نور الهدى | C236: 2001-03-08 | D236: مغنية | E236: أ | F236: م2 | G236: 2ت.ر01 | H236: سيب | J236: اولاد الشارف | K236: السنة الثالثة ثانوي لغــــــــات أجنبية | L236: 183 | M236: //////
A237: 7 | B237: عبوين أسماء | C237: 2000-07-18 | D237: مغنية | E237: أ | F237: م2 | G237: 2ت.ر01 | H237: يحي | J237: اولاد الشارف | K237: السنة الثالثة ثانوي لغــــــــات أجنبية | L237: 184 | M237: //////
A238: 8 | B238: لهباب رزق الله | C238: 2001-10-12 | D238: مغنية | E238: ذ | F238: ن1 | G238: 2ت.ر01 | H238: عز الدين | J238: شارع15 ر04 حي القاضي | K238: السنة الثالثة ثانوي لغــــــــات أجنبية | L238: 187 | M238: //////
A239: 9
A240: 10
A241: 11
A242: 12
A243: 174 | B243: بلخروف عبد النور | C243: 2002-09-29 | D243: مغنية | E243: ذ | F243: م1 | G243: 2ت.ر01 | H243: صالح | J243: حي النصر ، مغنية | K243: السنة الثالثة ثانوي أداب و فلســـــفة | L243: 174 | M243: //////
A244: 176 | B244: بوزار حمزة | C244: 2001-08-28 | D244: مغنية | E244: ذ | F244: م1 | G244: 2ت.ر01 | H244: بوزار نعيمة | J244: قرية راس عصفور المصامدة | K244: السنة الثالثة ثانوي لغــــــــات أجنبية | L244: 176 | M244: //////
A245: 179 | B245: دربال محمد عبد الاله | C245: 2002-01-19 | D245: مغنية | E245: ذ | F245: خ1 | G245: 2ت.ر01 | H245: سعيد | J245: حي بلال | K245: السنة الثالثة ثانوي لغــــــــات أجنبية | L245: 179 | M245: //////
A246: 182 | B246: زغودي صليحة | C246: 2000-07-27 | D246: مغنية | E246: أ | F246: م2 | G246: 2ت.ر01 | H246: غوتي | J246: المصامدة | K246: السنة الثالثة ثانوي لغــــــــات أجنبية | L246: 182 | M246: //////
A247: 185 | B247: عرقوب أصالة | C247: 2001-10-17 | D247: مشرية | E247: أ | F247: م2 | G247: 2ت.ر01 | H247: جمال | J247: المصامدة | K247: السنة الثالثة ثانوي لغــــــــات أجنبية | L247: 185 | M247: //////
... 369 more rows

Sheet التقرير اليومي
B1: الجمهورية الجزائرية الديمقراطية الشعبية | R1: مكان الحغظ | S1: اسم الملف
B2: وزارة التربية الوطنية | G2: التقرير اليومي للاستشارة | M2: 124 | R2: D:\Sep | S2: dim01
B3: مديرية التربية لولاية تلمسان
G4: الثلاثاء | J4: 2018-04-01 | M4: ثانوية الخوارزمي
B5: -1 | C5: مواظبة التلاميذ : | E5: الغيـــــــاب عن الدروس | M5: مغنية
B6: التعـداد | D6: التسجيلات | G6: الغائبـون | J6: ح س اليومي | K6: ح س الكلي | L6: عدد س الغياب | M6: نسبة غياب التلاميذ
D7: ذكور | E7: إناث | F7: المجموع | G7: ذكور | H7: إناث | I7: المجموع
B8: السنة الأولى ثانوي | D8: 112 | E8: 121 | F8: =SUM(D8:E8) -> 233 | G8: =COUNTIF(P63:P94,1) -> 0 | H8: =COUNTIF(P63:P94,2) -> 0 | I8: =SUM(G8:H8) -> 0 | J8: 52 | K8: =J8*F8 -> 12116 | L8: 26 | M8: =(L8/K8)*100 -> 0.2145922747 | N8: %
B9: السنة الثانية ثانوي | D9: 39 | E9: 86 | F9: =SUM(D9:E9) -> 125 | G9: =COUNTIF(Q63:Q94,1) -> 0 | H9: =COUNTIF(Q63:Q94,2) -> 0 | I9: =SUM(G9:H9) -> 0 | J9: 40 | K9: =J9*F9 -> 5000 | L9: 38 | M9: =(L9/K9)*100 -> 0.76 | N9: %
B10: السنة الثالثة ثانوي | D10: 71 | E10: 104 | F10: 175 | G10: =COUNTIF(S63:S115,1) -> 0 | H10: =COUNTIF(R63:R117,2) -> 0 | I10: =SUM(G10:H10) -> 0 | J10: 46 | K10: =J10*F10 -> 8050 | L10: 107 | M10: 1.329192547 | N10: %
B11: المجموع | D11: =SUM(D8:D10) -> 222 | E11: =SUM(E8:E10) -> 311 | F11: 533 | G11: =SUM(G8:G10) -> 0 | H11: =SUM(H8:H10) -> 0 | I11: =SUM(G11:H11) -> 0 | J11: =SUM(J8:J10) -> 138 | K11: =SUM(K8:K10) -> 25166 | L11: =L8+L9+L10 -> 171 | M11: 0.6794881984 | N11: %
E12: الغيـــــــاب في النظـام النصف داخلي
B13: التعـداد | D13: المسجلون | G13: الغائبـون | J13: ملاحظـــــــــات
D14: ذكور | E14: إناث | F14: المجموع | G14: ذكور | H14: إناث | I14: المجموع
B15: السنة الأولى ثانوي | D15: 85 | E15: 95 | F15: =SUM(D15:E15) -> 180 | G15: 3 | H15: 1 | I15: =SUM(G15:H15) -> 4
B16: السنة الثانية ثانوي | D16: 28 | E16: 66 | F16: =SUM(D16:E16) -> 94 | G16: 3 | H16: 1 | I16: =SUM(G16:H16) -> 4
B17: السنة الثالثة ثانوي | D17: 53 | E17: 71 | F17: 124 | G17: 2 | H17: 4 | I17: =SUM(G17:H17) -> 6
B18: المجموع | D18: =SUM(D15:D17) -> 166 | E18: =SUM(E15:E17) -> 232 | F18: 398 | G18: =SUM(G15:G17) -> 8 | H18: =SUM(H15:H17) -> 6 | I18: =SUM(G18:H18) -> 14 | J18: نسبة غياب التلاميذ | M18: =(I18/F18)*100 -> 3.51758794 | N18: %
B19: -2 | C19: حــــركة التلاميـــــذ
B20: الرقم | C20: الدخـــــــــــول | E20: رقم | F20: الخـــــــــــــــــــــروج | I20: رقم | J20: تغييـــــــــــــــــر الصـــــفة | N20: رقم | R20: 56
E21: البطاقة | I21: البطاقة | J21: ن د ــــــ خ | L21: خ ـــــــ ن د | N21: البطاقة
B22: 1 | R22: =SUM(R6:R21) -> 56
B23: 2
B24: 3
B25: -3 | C25: مواظبـــة الأساتذة :
B26: الرقم | C26: اللقب و الإسم | D26: المادة | E26: 08ـ09 | F26: 09ـ10 | G26: 10ـ11 | H26: 11ـ12 | I26: 14½-13½ | J26: 15½-14½ | K26: 16½-15½ | L26: 17½-16½ | M26: سبب الغياب | N26: ملاحظات
A27: 1 | B27: 1 | C27: =VLOOKUP(A27,tem,2,0) -> أ.ناسي | D27: =VLOOKUP(A27,tem,3,0) -> أ.الرياضيات | E27: =VLOOKUP(A27,tem,4,0) -> 0 | F27: =VLOOKUP(A27,tem,5,0) -> 0 | G27: =VLOOKUP(A27,tem,6,0) -> 3ت ر | H27: =VLOOKUP(A27,tem,7,0) -> 0 | I27: =VLOOKUP(A27,tem,8,0) -> 0 | J27: =VLOOKUP(A27,tem,9,0) -> 0 | K27: =VLOOKUP(A27,tem,10,0) -> 0 | L27: =VLOOKUP(A27,tem,11,0) -> 1ع1
A28: 3 | B28: 1 | C28: أ.بوعريشة | D28: أ.الرياضيات | E28: 0 | F28: 0 | G28: 0 | H28: 0 | I28: 0 | J28: 0 | K28: 0 | L28: 0
B29: 1
A30: 44 | B30: 1 | C30: أ.تربش | D30: أ.الرياضة | E30: 0 | F30: 0 | G30: 0 | H30: 0 | I30: 0 | J30: 0 | K30: 0 | L30: 0
B31: 1
A32: 5 | B32: 1 | C32: أ.ديب | D32: أ.الرياضيات | E32: 0 | F32: 0 | G32: 0 | H32: 0 | I32: 0 | J32: 0 | K32: 0 | L32: 0
B33: 1
B34: 1
B35: 1
B36: 1
B37: 1
B38: 1
B39: 1
B40: 1
B41: 1
B42: 1
B43: 1
B44: 1
B45: 1
B46: 1
B47: 1
B48: 1
B49: 1
B50: 1
B51: -4 | C51: غيابات و تأخرات مساعدي التربية و موطفي عقود ما قبل التشغيل
B52: الرقم | C52: اللقب و الإسم | E52: الفترة الصباحية | H52: الفترة المسائية | K52: ملاحظات | M52: سبب الغياب
B53: 1
B54: 2
B55: 3
B56: -5 | C56: تعويــض الدروس الضـــــائعــة
B57: الرقم | C57: اللقب و الإسم | D57: المادة | E57: القسم | G57: التوقيت | I57: ملاحظـــــــــــــــــات
B58: 1
B59: 2
B61: الغيــــــــابات اليومية | K61: =G4 -> الثلاثاء | M61: =J4 -> 2018-04-01
B62: الرقم | C62: السنة الأول | D62: القسم | E62: السنة الثانية | G62: القسم | H62: السنة الثالثة | J62: القسم | K62: قضايا سلــوكية
B63: 1
B64: 2
B65: 3
B66: 4
B67: 5
B68: 6
B69: 7
B70: 8 | K70: الحوادث المدرسية :
B71: 9
B72: 10
B73: 11
B74: 12 | K74: الصحة المدرسية :
B75: 13
B76: 14
B77: 15
B78: 16
B79: 17
B80: 18
B81: 19
B82: 20 | K82: ملاحظات مختلفة :
B83: 21
B84: 22
B85: 23
B86: 24
B87: 25
B88: 26
B89: 27 | K89: ندوات - مجالس - زيارات
B90: 28
B91: 29
B92: 30
B93: 31
B94: 32
B95: 33
B96: 34 | K96: شهادة مدرسية | M96: العدد :
B97: 35 | K97: من | M97: الــى
B98: 36
B99: 37 | K99: ملاحظات السيد الناظــر
B100: 38
B101: 39
B102: 40
C103: مستشار التربية | L103: الناظر
E106: الثلاثاء
E107: 08ـ09 | F107: 09ـ10 | G107: 10ـ11 | H107: 11ـ12 | I107: 14½-13½ | J107: 15½-14½ | K107: 16½-15½ | L107: 17½-16½
B108: 1 | C108: أ.ناسي | D108: أ.الرياضيات | G108: 3ت ر | L108: 1ع1
B109: 2 | C109: أ.بوطوبة | D109: أ.الرياضيات
B110: 3 | C110: أ.بوعريشة | D110: أ.الرياضيات
B111: 4 | C111: أ.قبلي | D111: أ.الرياضيات
B112: 5 | C112: أ.ديب | D112: أ.الرياضيات
B113: 6 | C113: أ.عشماوي | D113: أ.الفيزياء
B114: 7 | C114: أ.حاجب | D114: أ.الفيزياء
B115: 8 | C115: قوراري | D115: أ.الفيزياء
B116: 9 | C116: أ.ناضور | D116: أ.الفيزياء
B117: 10 | C117: أ.زرار | D117: أ.الفيزياء
B118: 11 | C118: أ.براهمي | D118: أ.ع الطبيعية
B119: 12 | C119: أ.لعشب | D119: أ.ع الطبيعية
B120: 13 | C120: أ.درني | D120: أ.ع الطبيعية
B121: 14 | C121: أ.فراج | D121: أ.ع الطبيعية
B122: 15 | C122: أ.كريب | D122: أ,الأدب العربي
B123: 16 | C123: أ.صبيان | D123: أ,الأدب العربي
B124: 17 | C124: أ.قادري | D124: أ,الأدب العربي
B125: 18 | C125: أ.أعطا الله | D125: أ,الأدب العربي
B126: 19 | C126: أ.قعاد | D126: أ,الأدب العربي
B127: 20 | C127: أ.قان | D127: أ.الاجتماعيات
B128: 21 | C128: أ.سواريت | D128: أ.الاجتماعيات
B129: 22 | C129: أ.صفراوي | D129: أ.الاجتماعيات
B130: 23 | C130: أ.أجد | D130: أ.الاجتماعيات
B131: 24 | C131: أ.بوحاجب/و | D131: أ.ع الإسلامية
B132: 25 | C132: أ.بوزياني | D132: أ.ع الإسلامية
B133: 26 | C133: أ.عزيز | D133: أ.الفلسفة
B134: 27 | C134: أ.زقاي | D134: أ.الفلسفة
B135: 28 | C135: أ.رابحي | D135: أ.الفرنسية
B136: 29 | C136: أ.كوليلي | D136: أ.الفرنسية
B137: 30 | C137: أ.بومانة | D137: أ.الفرنسية
B138: 31 | C138: أ.عباد | D138: أ.الفرنسية
B139: 32 | C139: أ.العرباوي | D139: أ.الانجليزية
B140: 33 | C140: أ.معزوز | D140: أ.الانجليزية
B141: 34 | C141: أ.مزاري | D141: أ.الانجليزية
B142: 35 | C142: أ.شنتوف | D142: أ.الانجليزية
B143: 36 | C143: أ.سيفاني | D143: أ.الاسبانية
B144: 37 | C144: أ.زغودي | D144: أ.التكنولوجيا
B145: 38 | C145: أ.موس | D145: أ.التكنولوجيا
B146: 39 | C146: أ.بوهنة | D146: أ.التكنولوجيا
B147: 40 | C147: أ.نوار | D147: أ.المعلوماتية
B148: 41 | C148: أ.بوشيخي | D148: أ.الاقتصاد
B149: 42 | C149: أ.فارس | D149: أ.الاقتصاد
B150: 43 | C150: أ.لقبوري | D150: أ.الرياضة
B151: 44 | C151: أ.تربش | D151: أ.الرياضة
B152: 45 | C152: أ.كحلون | D152: أ.الرياضة
